{"text_format":"1","workbook":"xlsx","n_sheets":9,"sheets":["Anleitung","Todesfälle mit HS","Zusammenfassung","Grundlagen","ICD-Filter","KI-Filter","FAB-Liste","EFA-Codes","DS_Beschreibung"],"not_rendered":{"charts":0,"images":12,"macros":1,"external_links":0,"defined_names":17,"comments":0,"pivot_tables":3},"unopened":[],"bounds":{"document_bytes":16777216,"sheet_cells":100000,"rows_first":2000,"rows_last":500,"rows_between":2000,"halvings":0,"cell_chars":16384,"cell_head_chars":4096},"cells_cut":0,"cells_raw":0,"read":"whole","date_system":"1900"}

{"sheet":"Anleitung","index":0,"n_rows":44,"n_cols":9,"rows_kept":44,"cut":false,"hidden":false,"merged":[[43,4,43,6]]}
[]
[]
[null,null,null,null,null,null,null,null,"Version 4.2.3"]
[]
[null,null,"Die vorliegende Datei \"TransplantCheck\" filtert alle im Krankenhaus Verstorbenen mit einer möglicherweise zum"]
[null,null,"irreversiblen Hirnfunktionsausfall (IHA) führenden akuten schweren Erkrankung oder Schädigung des Gehirns. "]
[null,null,"Das Programm ermöglicht eine Selektion der Daten Verstorbener, die nicht bereits eindeutig »ohne Beatmungs-"]
[null,null,"stunden« oder »mit absoluten Kontraindikationen« kategorisiert oder die nicht bereits an die DSO gemeldet wurden."]
[null,null,"Alle anderen erfassten Sterbefälle werden dann direkt auf dem Tabellenblatt \"Todesfälle mit HS\" anhand des Frage-"]
[null,null,"bogens »Einzelfallanalyse – Verstorbene mit primärer oder sekundärer Hirnschädigung« dokumentiert. "]
[null,null,"Zusätzlich lässt sich aus den gefilterten und vollständig dokumentierten Fällen der Datensatz exportieren, den"]
[null,null,"die Entnahmekrankenhäuser gemäß § 9a Abs. 2 Nr. 6 TPG mindestens einmal jährlich bis zum 30.06. an die"]
[null,null,"DSO übermitteln müssen."]
[]
[null,null,"TransplantCheck filtert die Datensätze gemäß § 21 KHEntgG nach den relevanten Todesfällen."]
[null,null,"Es werden folgende Dateien benötigt, die Bestandteil der an das InEK jährlich zu übermittelnden"]
[null,null,"Leistungsdaten sind:"]
[]
[null,null,null,"· FAB.csv"]
[null,null,null,"· FALL.csv"]
[null,null,null,"· ICD.csv"]
[null,null,null,"· OPS.csv"]
[]
[null,null,"Diese Datensätze werden in der Regel von der IT-Abteilung oder dem (Medizin-)Controlling erstellt."]
[]
[null,null,"Es können nur Datensätze eingelesen werden, die der aktuellen Datensatzbeschreibung des InEK entsprechen."]
[null,null,"Diese Datensatzbeschreibung finden Sie auch auf unserer Webseite (siehe Kasten unten)."]
[]
[]
[null,null,"Weitere Voraussetzungen zur Verwendung dieses Tools:"]
[]
[null,null,null,"· Optimiert für Excel 2016 (Mindestens Excel 2010)"]
[null,null,null,"· Aktivierung von Makros"]
[null,null,null,"· Schreibrechte auf das Verzeichnis, in dem die Datensätze (.csv) liegen"]
[]
[]
[]
[]
[null,null,null,"Die Kurzanleitung, den Leitfaden zur Kategorisierung der Einzelfallanalyse und weitere Informationen"]
[null,null,null,"sowie die Möglichkeit sich für einen Newsletter anzumelden, finden Sie unter:"]
[]
[]
[]
[null,null,null,null,"http://transplantcheck.dso.de"]

{"sheet":"Todesfälle mit HS","index":1,"n_rows":1,"n_cols":29,"rows_kept":1,"cut":false,"hidden":false,"merged":[]}
["Zuordnung","Status EFA","KH-internes-Kennzeichen","Entlassender Standort","Geschlecht","Alter","Patienten-nummer","Aufnahme-datum KH","Entlassungs-datum KH","Behandlungs-dauer","Beatmungs-dauer","Aufnahme-datum Intensiv","Entlassungs-datum Intensiv","Liegedauer Intensiv","Aufnahme-datum letzte FAB","Liegedauer letzte FAB","FAB","HD","ND","OPS-Kode","KI-Diagnose","KI","Traumatisch","Art Hirnschädigung","EFA-Code","Fehlende Einwilligung","Beteiligung TxB","Fall mit DSO besprochen","Bemerkungen"]

{"sheet":"Zusammenfassung","index":2,"n_rows":46,"n_cols":8,"rows_kept":46,"cut":false,"hidden":false,"merged":[]}
[]
[]
["Übersicht der erfassten Daten"]
[]
[]
[]
[]
[]
[]
[]
[]
[]
[]
[]
[]
[]
[]
[]
[null,null,null,"davon in den Altersgruppen"]
[null,"Gesamt",null,"<16 Jahre","16-54 Jahre","55-64 Jahre","65-74 Jahre",">=75 Jahre"]
[]
["Detektierte Fälle",{"$f":"SUM(D22:H22)","v":0},null,{"$f":"IFERROR(SUMIFS(INDEX(Pivot_Altersstruktur,,MATCH(\"Gesamtergebnis\",INDEX(Pivot_Altersstruktur,1,),0)),INDEX(Pivot_Altersstruktur,,1),\"<16\"),0)","v":0},{"$f":"IFERROR(SUMIFS(INDEX(Pivot_Altersstruktur,,MATCH(\"Gesamtergebnis\",INDEX(Pivot_Altersstruktur,1,),0)),INDEX(Pivot_Altersstruktur,,1),\">=16\",INDEX(Pivot_Altersstruktur,,1),\"<=54\"),0)","v":0},{"$f":"IFERROR(SUMIFS(INDEX(Pivot_Altersstruktur,,MATCH(\"Gesamtergebnis\",INDEX(Pivot_Altersstruktur,1,),0)),INDEX(Pivot_Altersstruktur,,1),\">=55\",INDEX(Pivot_Altersstruktur,,1),\"<=64\"),0)","v":0},{"$f":"IFERROR(SUMIFS(INDEX(Pivot_Altersstruktur,,MATCH(\"Gesamtergebnis\",INDEX(Pivot_Altersstruktur,1,),0)),INDEX(Pivot_Altersstruktur,,1),\">=65\",INDEX(Pivot_Altersstruktur,,1),\"<=74\"),0)","v":0},{"$f":"IFERROR(SUMIFS(INDEX(Pivot_Altersstruktur,,MATCH(\"Gesamtergebnis\",INDEX(Pivot_Altersstruktur,1,),0)),INDEX(Pivot_Altersstruktur,,1),\">=75\"),0)","v":0}]
[]
[]
["Fälle mit absoluter Kontraindikation",{"$f":"IFERROR(GETPIVOTDATA(\"KH-internes-Kennzeichen\",Grundlagen!$L$1,\"Zuordnung\",\"Absolute Kontraindikation\"),0)","v":0},null,{"$f":"IFERROR(SUMIFS(INDEX(Pivot_Altersstruktur,,MATCH(\"Absolute Kontraindikation\",INDEX(Pivot_Altersstruktur,1,),0)),INDEX(Pivot_Altersstruktur,,1),\"<16\"),0)","v":0},{"$f":"IFERROR(SUMIFS(INDEX(Pivot_Altersstruktur,,MATCH(\"Absolute Kontraindikation\",INDEX(Pivot_Altersstruktur,1,),0)),INDEX(Pivot_Altersstruktur,,1),\">=16\",INDEX(Pivot_Altersstruktur,,1),\"<=54\"),0)","v":0},{"$f":"IFERROR(SUMIFS(INDEX(Pivot_Altersstruktur,,MATCH(\"Absolute Kontraindikation\",INDEX(Pivot_Altersstruktur,1,),0)),INDEX(Pivot_Altersstruktur,,1),\">=55\",INDEX(Pivot_Altersstruktur,,1),\"<=64\"),0)","v":0},{"$f":"IFERROR(SUMIFS(INDEX(Pivot_Altersstruktur,,MATCH(\"Absolute Kontraindikation\",INDEX(Pivot_Altersstruktur,1,),0)),INDEX(Pivot_Altersstruktur,,1),\">=65\",INDEX(Pivot_Altersstruktur,,1),\"<=74\"),0)","v":0},{"$f":"IFERROR(SUMIFS(INDEX(Pivot_Altersstruktur,,MATCH(\"Absolute Kontraindikation\",INDEX(Pivot_Altersstruktur,1,),0)),INDEX(Pivot_Altersstruktur,,1),\">=75\"),0)","v":0}]
[]
["Fälle mit 0 Beatmungsstunden",{"$f":"IFERROR(GETPIVOTDATA(\"KH-internes-Kennzeichen\",Grundlagen!$L$1,\"Zuordnung\",\"0-Beatmungsstunden\"),0)","v":0},null,{"$f":"IFERROR(SUMIFS(INDEX(Pivot_Altersstruktur,,MATCH(\"0-Beatmungsstunden\",INDEX(Pivot_Altersstruktur,1,),0)),INDEX(Pivot_Altersstruktur,,1),\"<16\"),0)","v":0},{"$f":"IFERROR(SUMIFS(INDEX(Pivot_Altersstruktur,,MATCH(\"0-Beatmungsstunden\",INDEX(Pivot_Altersstruktur,1,),0)),INDEX(Pivot_Altersstruktur,,1),\">=16\",INDEX(Pivot_Altersstruktur,,1),\"<=54\"),0)","v":0},{"$f":"IFERROR(SUMIFS(INDEX(Pivot_Altersstruktur,,MATCH(\"0-Beatmungsstunden\",INDEX(Pivot_Altersstruktur,1,),0)),INDEX(Pivot_Altersstruktur,,1),\">=55\",INDEX(Pivot_Altersstruktur,,1),\"<=64\"),0)","v":0},{"$f":"IFERROR(SUMIFS(INDEX(Pivot_Altersstruktur,,MATCH(\"0-Beatmungsstunden\",INDEX(Pivot_Altersstruktur,1,),0)),INDEX(Pivot_Altersstruktur,,1),\">=65\",INDEX(Pivot_Altersstruktur,,1),\"<=74\"),0)","v":0},{"$f":"IFERROR(SUMIFS(INDEX(Pivot_Altersstruktur,,MATCH(\"0-Beatmungsstunden\",INDEX(Pivot_Altersstruktur,1,),0)),INDEX(Pivot_Altersstruktur,,1),\">=75\"),0)","v":0}]
[]
["Kontaktaufnahmen DSO (A2-B2)",{"$f":"IFERROR(GETPIVOTDATA(\"KH-internes-Kennzeichen\",Grundlagen!$L$1,\"Zuordnung\",\"Kontaktaufnahme DSO (A2-B2)\"),0)","v":0},null,{"$f":"IFERROR(SUMIFS(INDEX(Pivot_Altersstruktur,,MATCH(\"Kontaktaufnahme DSO (A2-B2)\",INDEX(Pivot_Altersstruktur,1,),0)),INDEX(Pivot_Altersstruktur,,1),\"<16\"),0)","v":0},{"$f":"IFERROR(SUMIFS(INDEX(Pivot_Altersstruktur,,MATCH(\"Kontaktaufnahme DSO (A2-B2)\",INDEX(Pivot_Altersstruktur,1,),0)),INDEX(Pivot_Altersstruktur,,1),\">=16\",INDEX(Pivot_Altersstruktur,,1),\"<=54\"),0)","v":0},{"$f":"IFERROR(SUMIFS(INDEX(Pivot_Altersstruktur,,MATCH(\"Kontaktaufnahme DSO (A2-B2)\",INDEX(Pivot_Altersstruktur,1,),0)),INDEX(Pivot_Altersstruktur,,1),\">=55\",INDEX(Pivot_Altersstruktur,,1),\"<=64\"),0)","v":0},{"$f":"IFERROR(SUMIFS(INDEX(Pivot_Altersstruktur,,MATCH(\"Kontaktaufnahme DSO (A2-B2)\",INDEX(Pivot_Altersstruktur,1,),0)),INDEX(Pivot_Altersstruktur,,1),\">=65\",INDEX(Pivot_Altersstruktur,,1),\"<=74\"),0)","v":0},{"$f":"IFERROR(SUMIFS(INDEX(Pivot_Altersstruktur,,MATCH(\"Kontaktaufnahme DSO (A2-B2)\",INDEX(Pivot_Altersstruktur,1,),0)),INDEX(Pivot_Altersstruktur,,1),\">=75\"),0)","v":0}]
[]
["Organspender (B3)",{"$f":"IFERROR(GETPIVOTDATA(\"KH-internes-Kennzeichen\",Grundlagen!$L$1,\"Zuordnung\",\"Organspender (B3)\"),0)","v":0},null,{"$f":"IFERROR(SUMIFS(INDEX(Pivot_Altersstruktur,,MATCH(\"Organspender (B3)\",INDEX(Pivot_Altersstruktur,1,),0)),INDEX(Pivot_Altersstruktur,,1),\"<16\"),0)","v":0},{"$f":"IFERROR(SUMIFS(INDEX(Pivot_Altersstruktur,,MATCH(\"Organspender (B3)\",INDEX(Pivot_Altersstruktur,1,),0)),INDEX(Pivot_Altersstruktur,,1),\">=16\",INDEX(Pivot_Altersstruktur,,1),\"<=54\"),0)","v":0},{"$f":"IFERROR(SUMIFS(INDEX(Pivot_Altersstruktur,,MATCH(\"Organspender (B3)\",INDEX(Pivot_Altersstruktur,1,),0)),INDEX(Pivot_Altersstruktur,,1),\">=55\",INDEX(Pivot_Altersstruktur,,1),\"<=64\"),0)","v":0},{"$f":"IFERROR(SUMIFS(INDEX(Pivot_Altersstruktur,,MATCH(\"Organspender (B3)\",INDEX(Pivot_Altersstruktur,1,),0)),INDEX(Pivot_Altersstruktur,,1),\">=65\",INDEX(Pivot_Altersstruktur,,1),\"<=74\"),0)","v":0},{"$f":"IFERROR(SUMIFS(INDEX(Pivot_Altersstruktur,,MATCH(\"Organspender (B3)\",INDEX(Pivot_Altersstruktur,1,),0)),INDEX(Pivot_Altersstruktur,,1),\">=75\"),0)","v":0}]
[]
["Einzelfallanalysen",{"$f":"IFERROR(GETPIVOTDATA(\"KH-internes-Kennzeichen\",Grundlagen!$L$1,\"Zuordnung\",\"Einzelfallanalyse\"),0)","v":0},null,{"$f":"IFERROR(SUMIFS(INDEX(Pivot_Altersstruktur,,MATCH(\"Einzelfallanalyse\",INDEX(Pivot_Altersstruktur,1,),0)),INDEX(Pivot_Altersstruktur,,1),\"<16\"),0)","v":0},{"$f":"IFERROR(SUMIFS(INDEX(Pivot_Altersstruktur,,MATCH(\"Einzelfallanalyse\",INDEX(Pivot_Altersstruktur,1,),0)),INDEX(Pivot_Altersstruktur,,1),\">=16\",INDEX(Pivot_Altersstruktur,,1),\"<=54\"),0)","v":0},{"$f":"IFERROR(SUMIFS(INDEX(Pivot_Altersstruktur,,MATCH(\"Einzelfallanalyse\",INDEX(Pivot_Altersstruktur,1,),0)),INDEX(Pivot_Altersstruktur,,1),\">=55\",INDEX(Pivot_Altersstruktur,,1),\"<=64\"),0)","v":0},{"$f":"IFERROR(SUMIFS(INDEX(Pivot_Altersstruktur,,MATCH(\"Einzelfallanalyse\",INDEX(Pivot_Altersstruktur,1,),0)),INDEX(Pivot_Altersstruktur,,1),\">=65\",INDEX(Pivot_Altersstruktur,,1),\"<=74\"),0)","v":0},{"$f":"IFERROR(SUMIFS(INDEX(Pivot_Altersstruktur,,MATCH(\"Einzelfallanalyse\",INDEX(Pivot_Altersstruktur,1,),0)),INDEX(Pivot_Altersstruktur,,1),\">=75\"),0)","v":0}]
[]
[]
[null,"Dokumentation der Einzelfallanalysen"]
[]
[null,null,"Vollständig",null,{"$f":"IFERROR(GETPIVOTDATA(\"KH-internes-Kennzeichen\",Grundlagen!$Y$3,\"Status EFA\",1),0)","v":0}]
[]
[null,null,"Mit Hinweisen",null,{"$f":"IFERROR(GETPIVOTDATA(\"KH-internes-Kennzeichen\",Grundlagen!$Y$3,\"Status EFA\",0),0)","v":0}]
[]
[null,null,"Nicht begonnen",null,{"$f":"IFERROR(GETPIVOTDATA(\"KH-internes-Kennzeichen\",Grundlagen!$Y$3,\"Status EFA\",-1),0)","v":0}]
[]
[]
[]
[{"$f":"IF(COUNTA(tbl_VerstorbeneMitHS[Zuordnung])<>COUNTA(tbl_VerstorbeneMitHS[KH-internes-Kennzeichen]),\"Es \"&IF(COUNTA(tbl_VerstorbeneMitHS[KH-internes-Kennzeichen])-COUNTA(tbl_VerstorbeneMitHS[Zuordnung])=1,\"muss noch 1 Fall\",\"müssen noch \"&COUNTA(tbl_VerstorbeneMitHS[KH-internes-Kennzeichen])-COUNTA(tbl_VerstorbeneMitHS[Zuordnung])&\" Fälle\")&\" in der Tabelle 'Todesfälle mit HS' in Spalte A ('Zuordnung') kategorisiert werden!\",\"\")","v":""}]

{"sheet":"Grundlagen","index":3,"n_rows":4,"n_cols":26,"rows_kept":4,"cut":false,"hidden":true,"merged":[]}
["Zuordnung","Status EFA","KH-internes-Kennzeichen","Entlassender Standort","Alter","Entlassungsdatum KH","FAB","Jahr","Monat","Monatsname",null,"Anzahl","Spaltenbeschriftungen",null,null,null,null,null,null,null,null,"Entlassender Standort","Anzahl",null,"Zuordnung","(Alle)"]
[null,null,null,null,null,null,null,{"$f":"IF(tbl_BasisZusammenfassung[[#This Row],[Entlassungsdatum KH]]=\"\",\"\",YEAR(tbl_BasisZusammenfassung[[#This Row],[Entlassungsdatum KH]]))","v":""},{"$f":"IF(tbl_BasisZusammenfassung[[#This Row],[Entlassungsdatum KH]]=\"\",\"\",MONTH(tbl_BasisZusammenfassung[[#This Row],[Entlassungsdatum KH]]))","v":""},{"$f":"IF(tbl_BasisZusammenfassung[[#This Row],[Entlassungsdatum KH]]=\"\",\"\",TEXT(tbl_BasisZusammenfassung[[#This Row],[Entlassungsdatum KH]],\"MMMM\"))","v":""},null,"Alter","(Leer)","Gesamtergebnis",null,null,null,null,null,null,null,"(Leer)"]
[null,null,null,null,null,null,null,{"$f":"IF(tbl_BasisZusammenfassung[[#This Row],[Entlassungsdatum KH]]=\"\",\"\",YEAR(tbl_BasisZusammenfassung[[#This Row],[Entlassungsdatum KH]]))","v":""},{"$f":"IF(tbl_BasisZusammenfassung[[#This Row],[Entlassungsdatum KH]]=\"\",\"\",MONTH(tbl_BasisZusammenfassung[[#This Row],[Entlassungsdatum KH]]))","v":""},{"$f":"IF(tbl_BasisZusammenfassung[[#This Row],[Entlassungsdatum KH]]=\"\",\"\",TEXT(tbl_BasisZusammenfassung[[#This Row],[Entlassungsdatum KH]],\"MMMM\"))","v":""},null,"(Leer)",null,null,null,null,null,null,null,null,null,null,null,null,"Status EFA","Anzahl"]
[null,null,null,null,null,null,null,null,null,null,null,"Gesamtergebnis",null,null,null,null,null,null,null,null,null,null,null,null,"(Leer)"]

{"sheet":"ICD-Filter","index":4,"n_rows":344,"n_cols":3,"rows_kept":344,"cut":false,"hidden":true,"merged":[]}
["ICD-Filter","Beschreibung","Gruppe"]
["C70.0","Bösartige Neubildung: Hirnhäute","Bösartige Neubildung der Meningen"]
["C70.0+","Bösartige Neubildung: Hirnhäute","Bösartige Neubildung der Meningen"]
["C70.9","Bösartige Neubildung: Meningen, nicht näher bezeichnet","Bösartige Neubildung der Meningen"]
["C70.9+","Bösartige Neubildung: Meningen, nicht näher bezeichnet","Bösartige Neubildung der Meningen"]
["C71.0","Bösartige Neubildung: Zerebrum, ausgenommen Hirnlappen und Ventrikel","Bösartige Neubildung des Gehirns"]
["C71.0+","Bösartige Neubildung: Zerebrum, ausgenommen Hirnlappen und Ventrikel","Bösartige Neubildung des Gehirns"]
["C71.1","Bösartige Neubildung: Frontallappen","Bösartige Neubildung des Gehirns"]
["C71.1+","Bösartige Neubildung: Frontallappen","Bösartige Neubildung des Gehirns"]
["C71.2","Bösartige Neubildung: Temporallappen","Bösartige Neubildung des Gehirns"]
["C71.2+","Bösartige Neubildung: Temporallappen","Bösartige Neubildung des Gehirns"]
["C71.3","Bösartige Neubildung: Parietallappen","Bösartige Neubildung des Gehirns"]
["C71.3+","Bösartige Neubildung: Parietallappen","Bösartige Neubildung des Gehirns"]
["C71.4","Bösartige Neubildung: Okzipitallappen","Bösartige Neubildung des Gehirns"]
["C71.4+","Bösartige Neubildung: Okzipitallappen","Bösartige Neubildung des Gehirns"]
["C71.5","Bösartige Neubildung: Hirnventrikel","Bösartige Neubildung des Gehirns"]
["C71.5+","Bösartige Neubildung: Hirnventrikel","Bösartige Neubildung des Gehirns"]
["C71.6","Bösartige Neubildung: Zerebellum","Bösartige Neubildung des Gehirns"]
["C71.6+","Bösartige Neubildung: Zerebellum","Bösartige Neubildung des Gehirns"]
["C71.7","Bösartige Neubildung: Hirnstamm","Bösartige Neubildung des Gehirns"]
["C71.7+","Bösartige Neubildung: Hirnstamm","Bösartige Neubildung des Gehirns"]
["C71.8","Bösartige Neubildung: Gehirn, mehrere Teilbereiche überlappend","Bösartige Neubildung des Gehirns"]
["C71.8+","Bösartige Neubildung: Gehirn, mehrere Teilbereiche überlappend","Bösartige Neubildung des Gehirns"]
["C71.9","Bösartige Neubildung: Gehirn, nicht näher bezeichnet","Bösartige Neubildung des Gehirns"]
["C71.9+","Bösartige Neubildung: Gehirn, nicht näher bezeichnet","Bösartige Neubildung des Gehirns"]
["D32.0","Gutartige Neubildung: Hirnhäute","Gutartige Neubildung der Meningen"]
["D32.0+","Gutartige Neubildung: Hirnhäute","Gutartige Neubildung der Meningen"]
["D32.9","Gutartige Neubildung: Meningen, nicht näher bezeichnet","Gutartige Neubildung der Meningen"]
["D32.9+","Gutartige Neubildung: Meningen, nicht näher bezeichnet","Gutartige Neubildung der Meningen"]
["D33.0","Gutartige Neubildung: Gehirn, supratentoriell","Gutartige Neubildung des Gehirns und anderer Teile des Zentralnervensystems"]
["D33.0+","Gutartige Neubildung: Gehirn, supratentoriell","Gutartige Neubildung des Gehirns und anderer Teile des Zentralnervensystems"]
["D33.1","Gutartige Neubildung: Gehirn, infratentoriell","Gutartige Neubildung des Gehirns und anderer Teile des Zentralnervensystems"]
["D33.1+","Gutartige Neubildung: Gehirn, infratentoriell","Gutartige Neubildung des Gehirns und anderer Teile des Zentralnervensystems"]
["D33.2","Gutartige Neubildung: Gehirn, nicht näher bezeichnet","Gutartige Neubildung des Gehirns und anderer Teile des Zentralnervensystems"]
["D33.2+","Gutartige Neubildung: Gehirn, nicht näher bezeichnet","Gutartige Neubildung des Gehirns und anderer Teile des Zentralnervensystems"]
["D33.3","Gutartige Neubildung: Hirnnerven","Gutartige Neubildung des Gehirns und anderer Teile des Zentralnervensystems"]
["D33.3+","Gutartige Neubildung: Hirnnerven","Gutartige Neubildung des Gehirns und anderer Teile des Zentralnervensystems"]
["G00.0","Meningitis durch Haemophilus influenzae","Bakterielle Meningitis, anderenorts nicht klassifiziert"]
["G00.0+","Meningitis durch Haemophilus influenzae","Bakterielle Meningitis, anderenorts nicht klassifiziert"]
["G00.1","Pneumokokkenmeningitis","Bakterielle Meningitis, anderenorts nicht klassifiziert"]
["G00.1+","Pneumokokkenmeningitis","Bakterielle Meningitis, anderenorts nicht klassifiziert"]
["G00.2","Streptokokkenmeningitis","Bakterielle Meningitis, anderenorts nicht klassifiziert"]
["G00.2+","Streptokokkenmeningitis","Bakterielle Meningitis, anderenorts nicht klassifiziert"]
["G00.3","Staphylokokkenmeningitis","Bakterielle Meningitis, anderenorts nicht klassifiziert"]
["G00.3+","Staphylokokkenmeningitis","Bakterielle Meningitis, anderenorts nicht klassifiziert"]
["G00.8","Sonstige bakterielle Meningitis","Bakterielle Meningitis, anderenorts nicht klassifiziert"]
["G00.8+","Sonstige bakterielle Meningitis","Bakterielle Meningitis, anderenorts nicht klassifiziert"]
["G00.9","Bakterielle Meningitis, nicht näher bezeichnet","Bakterielle Meningitis, anderenorts nicht klassifiziert"]
["G00.9+","Bakterielle Meningitis, nicht näher bezeichnet","Bakterielle Meningitis, anderenorts nicht klassifiziert"]
["G01","Meningitis bei anderenorts klassifizierten bakteriellen Krankheiten","Meningitis bei anderenorts klassifizierten bakteriellen Krankheiten"]
["G01*","Meningitis bei anderenorts klassifizierten bakteriellen Krankheiten","Meningitis bei anderenorts klassifizierten bakteriellen Krankheiten"]
["G01+","Meningitis bei anderenorts klassifizierten bakteriellen Krankheiten","Meningitis bei anderenorts klassifizierten bakteriellen Krankheiten"]
["G02.0","Meningitis bei anderenorts klassifizierten Viruskrankheiten","Meningitis bei sonstigen anderenorts klassifizierten infektiösen und parasitären Krankheiten"]
["G02.0*","Meningitis bei anderenorts klassifizierten Viruskrankheiten","Meningitis bei sonstigen anderenorts klassifizierten infektiösen und parasitären Krankheiten"]
["G02.0+","Meningitis bei anderenorts klassifizierten Viruskrankheiten","Meningitis bei sonstigen anderenorts klassifizierten infektiösen und parasitären Krankheiten"]
["G02.1","Meningitis bei anderenorts klassifizierten Mykosen","Meningitis bei sonstigen anderenorts klassifizierten infektiösen und parasitären Krankheiten"]
["G02.1*","Meningitis bei anderenorts klassifizierten Mykosen","Meningitis bei sonstigen anderenorts klassifizierten infektiösen und parasitären Krankheiten"]
["G02.1+","Meningitis bei anderenorts klassifizierten Mykosen","Meningitis bei sonstigen anderenorts klassifizierten infektiösen und parasitären Krankheiten"]
["G02.8","Meningitis bei sonstigen näher bezeichneten anderenorts klassifizierten infektiösen und parasitären Krankheiten","Meningitis bei sonstigen anderenorts klassifizierten infektiösen und parasitären Krankheiten"]
["G02.8*","Meningitis bei sonstigen näher bezeichneten anderenorts klassifizierten infektiösen und parasitären Krankheiten","Meningitis bei sonstigen anderenorts klassifizierten infektiösen und parasitären Krankheiten"]
["G02.8+","Meningitis bei sonstigen näher bezeichneten anderenorts klassifizierten infektiösen und parasitären Krankheiten","Meningitis bei sonstigen anderenorts klassifizierten infektiösen und parasitären Krankheiten"]
["G03.0","Nichteitrige Meningitis","Meningitis durch sonstige und nicht näher bezeichnete Ursachen"]
["G03.0+","Nichteitrige Meningitis","Meningitis durch sonstige und nicht näher bezeichnete Ursachen"]
["G03.1","Chronische Meningitis","Meningitis durch sonstige und nicht näher bezeichnete Ursachen"]
["G03.1+","Chronische Meningitis","Meningitis durch sonstige und nicht näher bezeichnete Ursachen"]
["G03.2","Benigne rezidivierende Meningitis [Mollaret-Meningitis]","Meningitis durch sonstige und nicht näher bezeichnete Ursachen"]
["G03.2+","Benigne rezidivierende Meningitis [Mollaret-Meningitis]","Meningitis durch sonstige und nicht näher bezeichnete Ursachen"]
["G03.8","Meningitis durch sonstige näher bezeichnete Ursachen","Meningitis durch sonstige und nicht näher bezeichnete Ursachen"]
["G03.8+","Meningitis durch sonstige näher bezeichnete Ursachen","Meningitis durch sonstige und nicht näher bezeichnete Ursachen"]
["G03.9","Meningitis, nicht näher bezeichnet","Meningitis durch sonstige und nicht näher bezeichnete Ursachen"]
["G03.9+","Meningitis, nicht näher bezeichnet","Meningitis durch sonstige und nicht näher bezeichnete Ursachen"]
["G05.0","Enzephalitis, Myelitis und Enzephalomyelitis bei anderenorts klassifizierten bakteriellen Krankheiten","Enzephalitis, Myelitis und Enzephalomyelitis bei anderenorts klassifizierten Krankheiten"]
["G05.0*","Enzephalitis, Myelitis und Enzephalomyelitis bei anderenorts klassifizierten bakteriellen Krankheiten","Enzephalitis, Myelitis und Enzephalomyelitis bei anderenorts klassifizierten Krankheiten"]
["G05.0+","Enzephalitis, Myelitis und Enzephalomyelitis bei anderenorts klassifizierten bakteriellen Krankheiten","Enzephalitis, Myelitis und Enzephalomyelitis bei anderenorts klassifizierten Krankheiten"]
["G05.1","Enzephalitis, Myelitis und Enzephalomyelitis bei anderenorts klassifizierten Viruskrankheiten","Enzephalitis, Myelitis und Enzephalomyelitis bei anderenorts klassifizierten Krankheiten"]
["G05.1*","Enzephalitis, Myelitis und Enzephalomyelitis bei anderenorts klassifizierten Viruskrankheiten","Enzephalitis, Myelitis und Enzephalomyelitis bei anderenorts klassifizierten Krankheiten"]
["G05.1+","Enzephalitis, Myelitis und Enzephalomyelitis bei anderenorts klassifizierten Viruskrankheiten","Enzephalitis, Myelitis und Enzephalomyelitis bei anderenorts klassifizierten Krankheiten"]
["G05.2","Enzephalitis, Myelitis und Enzephalomyelitis bei sonstigen anderenorts klassifizierten infektiösen und parasitären Krankheiten","Enzephalitis, Myelitis und Enzephalomyelitis bei anderenorts klassifizierten Krankheiten"]
["G05.2*","Enzephalitis, Myelitis und Enzephalomyelitis bei sonstigen anderenorts klassifizierten infektiösen und parasitären Krankheiten","Enzephalitis, Myelitis und Enzephalomyelitis bei anderenorts klassifizierten Krankheiten"]
["G05.2+","Enzephalitis, Myelitis und Enzephalomyelitis bei sonstigen anderenorts klassifizierten infektiösen und parasitären Krankheiten","Enzephalitis, Myelitis und Enzephalomyelitis bei anderenorts klassifizierten Krankheiten"]
["G05.8","Enzephalitis, Myelitis und Enzephalomyelitis bei sonstigen anderenorts klassifizierten Krankheiten","Enzephalitis, Myelitis und Enzephalomyelitis bei anderenorts klassifizierten Krankheiten"]
["G05.8*","Enzephalitis, Myelitis und Enzephalomyelitis bei sonstigen anderenorts klassifizierten Krankheiten","Enzephalitis, Myelitis und Enzephalomyelitis bei anderenorts klassifizierten Krankheiten"]
["G05.8+","Enzephalitis, Myelitis und Enzephalomyelitis bei sonstigen anderenorts klassifizierten Krankheiten","Enzephalitis, Myelitis und Enzephalomyelitis bei anderenorts klassifizierten Krankheiten"]
["G06.0","Intrakranieller Abszess und intrakranielles Granulom","Intrakranielle und intraspinale Abszesse und Granulome"]
["G06.0+","Intrakranieller Abszess und intrakranielles Granulom","Intrakranielle und intraspinale Abszesse und Granulome"]
["G07","Intrakranielle und intraspinale Abszesse und Granulome bei anderenorts klassifizierten Krankheiten","Intrakranielle und intraspinale Abszesse und Granulome bei anderenorts klassifizierten Krankheiten"]
["G07*","Intrakranielle und intraspinale Abszesse und Granulome bei anderenorts klassifizierten Krankheiten","Intrakranielle und intraspinale Abszesse und Granulome bei anderenorts klassifizierten Krankheiten"]
["G07+","Intrakranielle und intraspinale Abszesse und Granulome bei anderenorts klassifizierten Krankheiten","Intrakranielle und intraspinale Abszesse und Granulome bei anderenorts klassifizierten Krankheiten"]
["G08","Intrakranielle und intraspinale Phlebitis und Thrombophlebitis","Intrakranielle und intraspinale Phlebitis und Thrombophlebitis"]
["G08+","Intrakranielle und intraspinale Phlebitis und Thrombophlebitis","Intrakranielle und intraspinale Phlebitis und Thrombophlebitis"]
["G91.1","Hydrocephalus occlusus","Hydrozephalus"]
["G91.1+","Hydrocephalus occlusus","Hydrozephalus"]
["G91.3","Posttraumatischer Hydrozephalus, nicht näher bezeichnet","Hydrozephalus"]
["G91.3+","Posttraumatischer Hydrozephalus, nicht näher bezeichnet","Hydrozephalus"]
["G91.8","Sonstiger Hydrozephalus","Hydrozephalus"]
["G91.8+","Sonstiger Hydrozephalus","Hydrozephalus"]
["G91.9","Hydrozephalus, nicht näher bezeichnet","Hydrozephalus"]
["G91.9+","Hydrozephalus, nicht näher bezeichnet","Hydrozephalus"]
["G93.1","Anoxische Hirnschädigung, anderenorts nicht klassifiziert","Sonstige Krankheiten des Gehirns"]
["G93.1+","Anoxische Hirnschädigung, anderenorts nicht klassifiziert","Sonstige Krankheiten des Gehirns"]
["G93.5","Compressio cerebri","Sonstige Krankheiten des Gehirns"]
["G93.5+","Compressio cerebri","Sonstige Krankheiten des Gehirns"]
["G93.6","Hirnödem","Sonstige Krankheiten des Gehirns"]
["G93.6+","Hirnödem","Sonstige Krankheiten des Gehirns"]
["G94.0","Hydrozephalus bei anderenorts klassifizierten infektiösen und parasitären Krankheiten","Sonstige Krankheiten des Gehirns bei anderenorts klassifizierten Krankheiten"]
["G94.0*","Hydrozephalus bei anderenorts klassifizierten infektiösen und parasitären Krankheiten","Sonstige Krankheiten des Gehirns bei anderenorts klassifizierten Krankheiten"]
["G94.0+","Hydrozephalus bei anderenorts klassifizierten infektiösen und parasitären Krankheiten","Sonstige Krankheiten des Gehirns bei anderenorts klassifizierten Krankheiten"]
["G94.1","Hydrozephalus bei Neubildungen","Sonstige Krankheiten des Gehirns bei anderenorts klassifizierten Krankheiten"]
["G94.1*","Hydrozephalus bei Neubildungen","Sonstige Krankheiten des Gehirns bei anderenorts klassifizierten Krankheiten"]
["G94.1+","Hydrozephalus bei Neubildungen","Sonstige Krankheiten des Gehirns bei anderenorts klassifizierten Krankheiten"]
["I60.0","Subarachnoidalblutung, vom Karotissiphon oder der Karotisbifurkation ausgehend","Subarachnoidalblutung"]
["I60.0+","Subarachnoidalblutung, vom Karotissiphon oder der Karotisbifurkation ausgehend","Subarachnoidalblutung"]
["I60.1","Subarachnoidalblutung, von der A. cerebri media ausgehend","Subarachnoidalblutung"]
["I60.1+","Subarachnoidalblutung, von der A. cerebri media ausgehend","Subarachnoidalblutung"]
["I60.2","Subarachnoidalblutung, von der A. communicans anterior ausgehend","Subarachnoidalblutung"]
["I60.2+","Subarachnoidalblutung, von der A. communicans anterior ausgehend","Subarachnoidalblutung"]
["I60.3","Subarachnoidalblutung, von der A. communicans posterior ausgehend","Subarachnoidalblutung"]
["I60.3+","Subarachnoidalblutung, von der A. communicans posterior ausgehend","Subarachnoidalblutung"]
["I60.4","Subarachnoidalblutung, von der A. basilaris ausgehend","Subarachnoidalblutung"]
["I60.4+","Subarachnoidalblutung, von der A. basilaris ausgehend","Subarachnoidalblutung"]
["I60.5","Subarachnoidalblutung, von der A. vertebralis ausgehend","Subarachnoidalblutung"]
["I60.5+","Subarachnoidalblutung, von der A. vertebralis ausgehend","Subarachnoidalblutung"]
["I60.6","Subarachnoidalblutung, von sonstigen intrakraniellen Arterien ausgehend","Subarachnoidalblutung"]
["I60.6+","Subarachnoidalblutung, von sonstigen intrakraniellen Arterien ausgehend","Subarachnoidalblutung"]
["I60.7","Subarachnoidalblutung, von nicht näher bezeichneter intrakranieller Arterie ausgehend","Subarachnoidalblutung"]
["I60.7+","Subarachnoidalblutung, von nicht näher bezeichneter intrakranieller Arterie ausgehend","Subarachnoidalblutung"]
["I60.8","Sonstige Subarachnoidalblutung","Subarachnoidalblutung"]
["I60.8+","Sonstige Subarachnoidalblutung","Subarachnoidalblutung"]
["I60.9","Subarachnoidalblutung, nicht näher bezeichnet","Subarachnoidalblutung"]
["I60.9+","Subarachnoidalblutung, nicht näher bezeichnet","Subarachnoidalblutung"]
["I61.0","Intrazerebrale Blutung in die Großhirnhemisphäre, subkortikal","Intrazerebrale Blutung"]
["I61.0+","Intrazerebrale Blutung in die Großhirnhemisphäre, subkortikal","Intrazerebrale Blutung"]
["I61.1","Intrazerebrale Blutung in die Großhirnhemisphäre, kortikal","Intrazerebrale Blutung"]
["I61.1+","Intrazerebrale Blutung in die Großhirnhemisphäre, kortikal","Intrazerebrale Blutung"]
["I61.2","Intrazerebrale Blutung in die Großhirnhemisphäre, nicht näher bezeichnet","Intrazerebrale Blutung"]
["I61.2+","Intrazerebrale Blutung in die Großhirnhemisphäre, nicht näher bezeichnet","Intrazerebrale Blutung"]
["I61.3","Intrazerebrale Blutung in den Hirnstamm","Intrazerebrale Blutung"]
["I61.3+","Intrazerebrale Blutung in den Hirnstamm","Intrazerebrale Blutung"]
["I61.4","Intrazerebrale Blutung in das Kleinhirn","Intrazerebrale Blutung"]
["I61.4+","Intrazerebrale Blutung in das Kleinhirn","Intrazerebrale Blutung"]
["I61.5","Intrazerebrale intraventrikuläre Blutung","Intrazerebrale Blutung"]
["I61.5+","Intrazerebrale intraventrikuläre Blutung","Intrazerebrale Blutung"]
["I61.6","Intrazerebrale Blutung an mehreren Lokalisationen","Intrazerebrale Blutung"]
["I61.6+","Intrazerebrale Blutung an mehreren Lokalisationen","Intrazerebrale Blutung"]
["I61.8","Sonstige intrazerebrale Blutung","Intrazerebrale Blutung"]
["I61.8+","Sonstige intrazerebrale Blutung","Intrazerebrale Blutung"]
["I61.9","Intrazerebrale Blutung, nicht näher bezeichnet","Intrazerebrale Blutung"]
["I61.9+","Intrazerebrale Blutung, nicht näher bezeichnet","Intrazerebrale Blutung"]
["I62.00","Subdurale Blutung (nichttraumatisch): Akut","Sonstige nichttraumatische intrakranielle Blutung"]
["I62.00+","Subdurale Blutung (nichttraumatisch): Akut","Sonstige nichttraumatische intrakranielle Blutung"]
["I62.01","Subdurale Blutung (nichttraumatisch): Subakut","Sonstige nichttraumatische intrakranielle Blutung"]
["I62.01+","Subdurale Blutung (nichttraumatisch): Subakut","Sonstige nichttraumatische intrakranielle Blutung"]
["I62.1","Nichttraumatische extradurale Blutung","Sonstige nichttraumatische intrakranielle Blutung"]
["I62.1+","Nichttraumatische extradurale Blutung","Sonstige nichttraumatische intrakranielle Blutung"]
["I62.9","Intrakranielle Blutung (nichttraumatisch), nicht näher bezeichnet","Sonstige nichttraumatische intrakranielle Blutung"]
["I62.9+","Intrakranielle Blutung (nichttraumatisch), nicht näher bezeichnet","Sonstige nichttraumatische intrakranielle Blutung"]
["I63.0","Hirninfarkt durch Thrombose präzerebraler Arterien","Hirninfarkt"]
["I63.0+","Hirninfarkt durch Thrombose präzerebraler Arterien","Hirninfarkt"]
["I63.1","Hirninfarkt durch Embolie präzerebraler Arterien","Hirninfarkt"]
["I63.1+","Hirninfarkt durch Embolie präzerebraler Arterien","Hirninfarkt"]
["I63.2","Hirninfarkt durch nicht näher bezeichneten Verschluss oder Stenose präzerebraler Arterien","Hirninfarkt"]
["I63.2+","Hirninfarkt durch nicht näher bezeichneten Verschluss oder Stenose präzerebraler Arterien","Hirninfarkt"]
["I63.3","Hirninfarkt durch Thrombose zerebraler Arterien","Hirninfarkt"]
["I63.3+","Hirninfarkt durch Thrombose zerebraler Arterien","Hirninfarkt"]
["I63.4","Hirninfarkt durch Embolie zerebraler Arterien","Hirninfarkt"]
["I63.4+","Hirninfarkt durch Embolie zerebraler Arterien","Hirninfarkt"]
["I63.5","Hirninfarkt durch nicht näher bezeichneten Verschluss oder Stenose zerebraler Arterien","Hirninfarkt"]
["I63.5+","Hirninfarkt durch nicht näher bezeichneten Verschluss oder Stenose zerebraler Arterien","Hirninfarkt"]
["I63.6","Hirninfarkt durch Thrombose der Hirnvenen, nichteitrig","Hirninfarkt"]
["I63.6+","Hirninfarkt durch Thrombose der Hirnvenen, nichteitrig","Hirninfarkt"]
["I63.8","Sonstiger Hirninfarkt","Hirninfarkt"]
["I63.8+","Sonstiger Hirninfarkt","Hirninfarkt"]
["I63.9","Hirninfarkt, nicht näher bezeichnet","Hirninfarkt"]
["I63.9+","Hirninfarkt, nicht näher bezeichnet","Hirninfarkt"]
["I64","Schlaganfall, nicht als Blutung oder Infarkt bezeichnet","Schlaganfall, nicht als Blutung oder Infarkt bezeichnet"]
["I64+","Schlaganfall, nicht als Blutung oder Infarkt bezeichnet","Schlaganfall, nicht als Blutung oder Infarkt bezeichnet"]
["I67.0","Dissektion zerebraler Arterien","Sonstige zerebrovaskuläre Krankheiten"]
["I67.0+","Dissektion zerebraler Arterien","Sonstige zerebrovaskuläre Krankheiten"]
["I67.10","Zerebrales Aneurysma (erworben)","Sonstige zerebrovaskuläre Krankheiten"]
["I67.10+","Zerebrales Aneurysma (erworben)","Sonstige zerebrovaskuläre Krankheiten"]
["I67.11","Zerebrale arteriovenöse Fistel (erworben)","Sonstige zerebrovaskuläre Krankheiten"]
["I67.11+","Zerebrale arteriovenöse Fistel (erworben)","Sonstige zerebrovaskuläre Krankheiten"]
["I67.2","Zerebrale Atherosklerose","Sonstige zerebrovaskuläre Krankheiten"]
["I67.2+","Zerebrale Atherosklerose","Sonstige zerebrovaskuläre Krankheiten"]
["I67.3","Progressive subkortikale vaskuläre Enzephalopathie","Sonstige zerebrovaskuläre Krankheiten"]
["I67.3+","Progressive subkortikale vaskuläre Enzephalopathie","Sonstige zerebrovaskuläre Krankheiten"]
["I67.4","Hypertensive Enzephalopathie","Sonstige zerebrovaskuläre Krankheiten"]
["I67.4+","Hypertensive Enzephalopathie","Sonstige zerebrovaskuläre Krankheiten"]
["I67.5","Moyamoya-Syndrom","Sonstige zerebrovaskuläre Krankheiten"]
["I67.5+","Moyamoya-Syndrom","Sonstige zerebrovaskuläre Krankheiten"]
["I67.6","Nichteitrige Thrombose des intrakraniellen Venensystems","Sonstige zerebrovaskuläre Krankheiten"]
["I67.6+","Nichteitrige Thrombose des intrakraniellen Venensystems","Sonstige zerebrovaskuläre Krankheiten"]
["I67.7","Zerebrale Arteriitis, anderenorts nicht klassifiziert","Sonstige zerebrovaskuläre Krankheiten"]
["I67.7+","Zerebrale Arteriitis, anderenorts nicht klassifiziert","Sonstige zerebrovaskuläre Krankheiten"]
["I67.80","Vasospasmen bei Subarachnoidalblutung","Sonstige zerebrovaskuläre Krankheiten"]
["I67.80+","Vasospasmen bei Subarachnoidalblutung","Sonstige zerebrovaskuläre Krankheiten"]
["I67.88","Sonstige näher bezeichnete zerebrovaskuläre Krankheiten","Sonstige zerebrovaskuläre Krankheiten"]
["I67.88+","Sonstige näher bezeichnete zerebrovaskuläre Krankheiten","Sonstige zerebrovaskuläre Krankheiten"]
["I67.9","Zerebrovaskuläre Krankheit, nicht näher bezeichnet","Sonstige zerebrovaskuläre Krankheiten"]
["I67.9+","Zerebrovaskuläre Krankheit, nicht näher bezeichnet","Sonstige zerebrovaskuläre Krankheiten"]
["O22.5","Hirnvenenthrombose in der Schwangerschaft","Venenkrankheiten und Hämorrhoiden als Komplikationen in der Schwangerschaft"]
["O22.5+","Hirnvenenthrombose in der Schwangerschaft","Venenkrankheiten und Hämorrhoiden als Komplikationen in der Schwangerschaft"]
["P10.0","Subdurale Blutung durch Geburtsverletzung","Intrakranielle Verletzung und Blutung durch Geburtsverletzung"]
["P10.0+","Subdurale Blutung durch Geburtsverletzung","Intrakranielle Verletzung und Blutung durch Geburtsverletzung"]
["P10.1","Zerebrale Blutung durch Geburtsverletzung","Intrakranielle Verletzung und Blutung durch Geburtsverletzung"]
["P10.1+","Zerebrale Blutung durch Geburtsverletzung","Intrakranielle Verletzung und Blutung durch Geburtsverletzung"]
["P10.2","Intraventrikuläre Blutung durch Geburtsverletzung","Intrakranielle Verletzung und Blutung durch Geburtsverletzung"]
["P10.2+","Intraventrikuläre Blutung durch Geburtsverletzung","Intrakranielle Verletzung und Blutung durch Geburtsverletzung"]
["P10.3","Subarachnoidale Blutung durch Geburtsverletzung","Intrakranielle Verletzung und Blutung durch Geburtsverletzung"]
["P10.3+","Subarachnoidale Blutung durch Geburtsverletzung","Intrakranielle Verletzung und Blutung durch Geburtsverletzung"]
["P10.4","Tentoriumriss durch Geburtsverletzung","Intrakranielle Verletzung und Blutung durch Geburtsverletzung"]
["P10.4+","Tentoriumriss durch Geburtsverletzung","Intrakranielle Verletzung und Blutung durch Geburtsverletzung"]
["P10.8","Sonstige intrakranielle Verletzungen und Blutungen durch Geburtsverletzung","Intrakranielle Verletzung und Blutung durch Geburtsverletzung"]
["P10.8+","Sonstige intrakranielle Verletzungen und Blutungen durch Geburtsverletzung","Intrakranielle Verletzung und Blutung durch Geburtsverletzung"]
["P10.9","Nicht näher bezeichnete intrakranielle Verletzung und Blutung durch Geburtsverletzung","Intrakranielle Verletzung und Blutung durch Geburtsverletzung"]
["P10.9+","Nicht näher bezeichnete intrakranielle Verletzung und Blutung durch Geburtsverletzung","Intrakranielle Verletzung und Blutung durch Geburtsverletzung"]
["P11.0","Hirnödem durch Geburtsverletzung","Sonstige Geburtsverletzungen des Zentralnervensystems"]
["P11.0+","Hirnödem durch Geburtsverletzung","Sonstige Geburtsverletzungen des Zentralnervensystems"]
["P11.1","Sonstige näher bezeichnete Hirnschädigung durch Geburtsverletzung","Sonstige Geburtsverletzungen des Zentralnervensystems"]
["P11.1+","Sonstige näher bezeichnete Hirnschädigung durch Geburtsverletzung","Sonstige Geburtsverletzungen des Zentralnervensystems"]
["P11.2","Nicht näher bezeichnete Hirnschädigung durch Geburtsverletzung","Sonstige Geburtsverletzungen des Zentralnervensystems"]
["P11.2+","Nicht näher bezeichnete Hirnschädigung durch Geburtsverletzung","Sonstige Geburtsverletzungen des Zentralnervensystems"]
["P52.0","Intraventrikuläre (nichttraumatische) Blutung 1. Grades beim Feten und Neugeborenen","Intrakranielle nichttraumatische Blutung beim Feten und Neugeborenen"]
["P52.0+","Intraventrikuläre (nichttraumatische) Blutung 1. Grades beim Feten und Neugeborenen","Intrakranielle nichttraumatische Blutung beim Feten und Neugeborenen"]
["P52.1","Intraventrikuläre (nichttraumatische) Blutung 2. Grades beim Feten und Neugeborenen","Intrakranielle nichttraumatische Blutung beim Feten und Neugeborenen"]
["P52.1+","Intraventrikuläre (nichttraumatische) Blutung 2. Grades beim Feten und Neugeborenen","Intrakranielle nichttraumatische Blutung beim Feten und Neugeborenen"]
["P52.2","Intraventrikuläre (nichttraumatische) Blutung 3. Grades beim Feten und Neugeborenen","Intrakranielle nichttraumatische Blutung beim Feten und Neugeborenen"]
["P52.2+","Intraventrikuläre (nichttraumatische) Blutung 3. Grades beim Feten und Neugeborenen","Intrakranielle nichttraumatische Blutung beim Feten und Neugeborenen"]
["P52.3","Nicht näher bezeichnete intraventrikuläre (nichttraumatische) Blutung beim Feten und Neugeborenen","Intrakranielle nichttraumatische Blutung beim Feten und Neugeborenen"]
["P52.3+","Nicht näher bezeichnete intraventrikuläre (nichttraumatische) Blutung beim Feten und Neugeborenen","Intrakranielle nichttraumatische Blutung beim Feten und Neugeborenen"]
["P52.4","Intrazerebrale (nichttraumatische) Blutung beim Feten und Neugeborenen","Intrakranielle nichttraumatische Blutung beim Feten und Neugeborenen"]
["P52.4+","Intrazerebrale (nichttraumatische) Blutung beim Feten und Neugeborenen","Intrakranielle nichttraumatische Blutung beim Feten und Neugeborenen"]
["P52.5","Subarachnoidalblutung (nichttraumatisch) beim Feten und Neugeborenen","Intrakranielle nichttraumatische Blutung beim Feten und Neugeborenen"]
["P52.5+","Subarachnoidalblutung (nichttraumatisch) beim Feten und Neugeborenen","Intrakranielle nichttraumatische Blutung beim Feten und Neugeborenen"]
["P52.6","Kleinhirnblutung (nichttraumatisch) und Blutung in die Fossa cranii posterior beim Feten und Neugeborenen","Intrakranielle nichttraumatische Blutung beim Feten und Neugeborenen"]
["P52.6+","Kleinhirnblutung (nichttraumatisch) und Blutung in die Fossa cranii posterior beim Feten und Neugeborenen","Intrakranielle nichttraumatische Blutung beim Feten und Neugeborenen"]
["P52.8","Sonstige intrakranielle (nichttraumatische) Blutungen beim Feten und Neugeborenen","Intrakranielle nichttraumatische Blutung beim Feten und Neugeborenen"]
["P52.8+","Sonstige intrakranielle (nichttraumatische) Blutungen beim Feten und Neugeborenen","Intrakranielle nichttraumatische Blutung beim Feten und Neugeborenen"]
["P52.9","Intrakranielle (nichttraumatische) Blutung beim Feten und Neugeborenen, nicht näher bezeichnet","Intrakranielle nichttraumatische Blutung beim Feten und Neugeborenen"]
["P52.9+","Intrakranielle (nichttraumatische) Blutung beim Feten und Neugeborenen, nicht näher bezeichnet","Intrakranielle nichttraumatische Blutung beim Feten und Neugeborenen"]
["Q01.0","Frontale Enzephalozele","Enzephalozele"]
["Q01.0+","Frontale Enzephalozele","Enzephalozele"]
["Q01.1","Nasofrontale Enzephalozele","Enzephalozele"]
["Q01.1+","Nasofrontale Enzephalozele","Enzephalozele"]
["Q01.2","Okzipitale Enzephalozele","Enzephalozele"]
["Q01.2+","Okzipitale Enzephalozele","Enzephalozele"]
["Q01.8","Enzephalozele sonstiger Lokalisationen","Enzephalozele"]
["Q01.8+","Enzephalozele sonstiger Lokalisationen","Enzephalozele"]
["Q01.9","Enzephalozele, nicht näher bezeichnet","Enzephalozele"]
["Q01.9+","Enzephalozele, nicht näher bezeichnet","Enzephalozele"]
["Q02","Mikrozephalie","Mikrozephalie"]
["Q02+","Mikrozephalie","Mikrozephalie"]
["Q03.0","Fehlbildungen des Aquaeductus cerebri","Angeborener Hydrozephalus"]
["Q03.0+","Fehlbildungen des Aquaeductus cerebri","Angeborener Hydrozephalus"]
["Q03.1","Atresie der Apertura mediana [Foramen Magendii] oder der Aperturae laterales [Foramina Luschkae] des vierten Ventrikels","Angeborener Hydrozephalus"]
["Q03.1+","Atresie der Apertura mediana [Foramen Magendii] oder der Aperturae laterales [Foramina Luschkae] des vierten Ventrikels","Angeborener Hydrozephalus"]
["Q03.8","Sonstiger angeborener Hydrozephalus","Angeborener Hydrozephalus"]
["Q03.8+","Sonstiger angeborener Hydrozephalus","Angeborener Hydrozephalus"]
["Q03.9","Angeborener Hydrozephalus, nicht näher bezeichnet","Angeborener Hydrozephalus"]
["Q03.9+","Angeborener Hydrozephalus, nicht näher bezeichnet","Angeborener Hydrozephalus"]
["Q04.0","Angeborene Fehlbildungen des Corpus callosum","Sonstige angeborene Fehlbildungen des Gehirns"]
["Q04.0+","Angeborene Fehlbildungen des Corpus callosum","Sonstige angeborene Fehlbildungen des Gehirns"]
["Q04.1","Arrhinenzephalie","Sonstige angeborene Fehlbildungen des Gehirns"]
["Q04.1+","Arrhinenzephalie","Sonstige angeborene Fehlbildungen des Gehirns"]
["Q04.2","Holoprosenzephalie-Syndrom","Sonstige angeborene Fehlbildungen des Gehirns"]
["Q04.2+","Holoprosenzephalie-Syndrom","Sonstige angeborene Fehlbildungen des Gehirns"]
["Q04.3","Sonstige Reduktionsdeformitäten des Gehirns","Sonstige angeborene Fehlbildungen des Gehirns"]
["Q04.3+","Sonstige Reduktionsdeformitäten des Gehirns","Sonstige angeborene Fehlbildungen des Gehirns"]
["Q04.4","Septooptische Dysplasie","Sonstige angeborene Fehlbildungen des Gehirns"]
["Q04.4+","Septooptische Dysplasie","Sonstige angeborene Fehlbildungen des Gehirns"]
["Q04.5","Megalenzephalie","Sonstige angeborene Fehlbildungen des Gehirns"]
["Q04.5+","Megalenzephalie","Sonstige angeborene Fehlbildungen des Gehirns"]
["Q04.6","Angeborene Gehirnzysten","Sonstige angeborene Fehlbildungen des Gehirns"]
["Q04.6+","Angeborene Gehirnzysten","Sonstige angeborene Fehlbildungen des Gehirns"]
["Q04.8","Sonstige näher bezeichnete angeborene Fehlbildungen des Gehirns","Sonstige angeborene Fehlbildungen des Gehirns"]
["Q04.8+","Sonstige näher bezeichnete angeborene Fehlbildungen des Gehirns","Sonstige angeborene Fehlbildungen des Gehirns"]
["Q04.9","Angeborene Fehlbildung des Gehirns, nicht näher bezeichnet","Sonstige angeborene Fehlbildungen des Gehirns"]
["Q04.9+","Angeborene Fehlbildung des Gehirns, nicht näher bezeichnet","Sonstige angeborene Fehlbildungen des Gehirns"]
["S06.1","Traumatisches Hirnödem","Intrakranielle Verletzung"]
["S06.1+","Traumatisches Hirnödem","Intrakranielle Verletzung"]
["S06.20","Diffuse Hirn- und Kleinhirnverletzung, nicht näher bezeichnet","Intrakranielle Verletzung"]
["S06.20+","Diffuse Hirn- und Kleinhirnverletzung, nicht näher bezeichnet","Intrakranielle Verletzung"]
["S06.21","Diffuse Hirnkontusionen","Intrakranielle Verletzung"]
["S06.21+","Diffuse Hirnkontusionen","Intrakranielle Verletzung"]
["S06.22","Diffuse Kleinhirnkontusionen","Intrakranielle Verletzung"]
["S06.22+","Diffuse Kleinhirnkontusionen","Intrakranielle Verletzung"]
["S06.23","Multiple intrazerebrale und zerebellare Hämatome","Intrakranielle Verletzung"]
["S06.23+","Multiple intrazerebrale und zerebellare Hämatome","Intrakranielle Verletzung"]
["S06.28","Sonstige diffuse Hirn- und Kleinhirnverletzungen","Intrakranielle Verletzung"]
["S06.28+","Sonstige diffuse Hirn- und Kleinhirnverletzungen","Intrakranielle Verletzung"]
["S06.30","Umschriebene Hirn- und Kleinhirnverletzung, nicht näher bezeichnet","Intrakranielle Verletzung"]
["S06.30+","Umschriebene Hirn- und Kleinhirnverletzung, nicht näher bezeichnet","Intrakranielle Verletzung"]
["S06.31","Umschriebene Hirnkontusion","Intrakranielle Verletzung"]
["S06.31+","Umschriebene Hirnkontusion","Intrakranielle Verletzung"]
["S06.32","Umschriebene Kleinhirnkontusion","Intrakranielle Verletzung"]
["S06.32+","Umschriebene Kleinhirnkontusion","Intrakranielle Verletzung"]
["S06.33","Umschriebenes zerebrales Hämatom","Intrakranielle Verletzung"]
["S06.33+","Umschriebenes zerebrales Hämatom","Intrakranielle Verletzung"]
["S06.34","Umschriebenes zerebellares Hämatom","Intrakranielle Verletzung"]
["S06.34+","Umschriebenes zerebellares Hämatom","Intrakranielle Verletzung"]
["S06.38","Sonstige umschriebene Hirn- und Kleinhirnverletzungen","Intrakranielle Verletzung"]
["S06.38+","Sonstige umschriebene Hirn- und Kleinhirnverletzungen","Intrakranielle Verletzung"]
["S06.4","Epidurale Blutung","Intrakranielle Verletzung"]
["S06.4+","Epidurale Blutung","Intrakranielle Verletzung"]
["S06.5","Traumatische subdurale Blutung","Intrakranielle Verletzung"]
["S06.5+","Traumatische subdurale Blutung","Intrakranielle Verletzung"]
["S06.6","Traumatische subarachnoidale Blutung","Intrakranielle Verletzung"]
["S06.6+","Traumatische subarachnoidale Blutung","Intrakranielle Verletzung"]
["S06.8","Sonstige intrakranielle Verletzungen","Intrakranielle Verletzung"]
["S06.8+","Sonstige intrakranielle Verletzungen","Intrakranielle Verletzung"]
["S06.9","Intrakranielle Verletzung, nicht näher bezeichnet","Intrakranielle Verletzung"]
["S06.9+","Intrakranielle Verletzung, nicht näher bezeichnet","Intrakranielle Verletzung"]
["S07.0","Zerquetschung des Gesichtes","Zerquetschung des Kopfes"]
["S07.0+","Zerquetschung des Gesichtes","Zerquetschung des Kopfes"]
["S07.1","Zerquetschung des Schädels","Zerquetschung des Kopfes"]
["S07.1+","Zerquetschung des Schädels","Zerquetschung des Kopfes"]
["S07.8","Zerquetschung sonstiger Teile des Kopfes","Zerquetschung des Kopfes"]
["S07.8+","Zerquetschung sonstiger Teile des Kopfes","Zerquetschung des Kopfes"]
["S07.9","Zerquetschung des Kopfes, Teil nicht näher bezeichnet","Zerquetschung des Kopfes"]
["S07.9+","Zerquetschung des Kopfes, Teil nicht näher bezeichnet","Zerquetschung des Kopfes"]
["S08.8","Traumatische Amputation sonstiger Teile des Kopfes","Traumatische Amputation von Teilen des Kopfes"]
["S08.8+","Traumatische Amputation sonstiger Teile des Kopfes","Traumatische Amputation von Teilen des Kopfes"]
["S08.9","Traumatische Amputation eines nicht näher bezeichneten Teiles des Kopfes","Traumatische Amputation von Teilen des Kopfes"]
["S08.9+","Traumatische Amputation eines nicht näher bezeichneten Teiles des Kopfes","Traumatische Amputation von Teilen des Kopfes"]
["S09.7","Multiple Verletzungen des Kopfes","Sonstige und nicht näher bezeichnete Verletzungen des Kopfes"]
["S09.7+","Multiple Verletzungen des Kopfes","Sonstige und nicht näher bezeichnete Verletzungen des Kopfes"]
["S15.00","Verletzung: A. carotis, Teil nicht näher bezeichnet","Verletzung von Blutgefäßen in Halshöhe"]
["S15.00+","Verletzung: A. carotis, Teil nicht näher bezeichnet","Verletzung von Blutgefäßen in Halshöhe"]
["S15.01","Verletzung: A. carotis communis","Verletzung von Blutgefäßen in Halshöhe"]
["S15.01+","Verletzung: A. carotis communis","Verletzung von Blutgefäßen in Halshöhe"]
["S15.02","Verletzung: A. carotis externa","Verletzung von Blutgefäßen in Halshöhe"]
["S15.02+","Verletzung: A. carotis externa","Verletzung von Blutgefäßen in Halshöhe"]
["S15.03","Verletzung: A. carotis interna","Verletzung von Blutgefäßen in Halshöhe"]
["S15.03+","Verletzung: A. carotis interna","Verletzung von Blutgefäßen in Halshöhe"]
["S15.1","Verletzung der A. vertebralis","Verletzung von Blutgefäßen in Halshöhe"]
["S15.1+","Verletzung der A. vertebralis","Verletzung von Blutgefäßen in Halshöhe"]
["S15.2","Verletzung der V. jugularis externa","Verletzung von Blutgefäßen in Halshöhe"]
["S15.2+","Verletzung der V. jugularis externa","Verletzung von Blutgefäßen in Halshöhe"]
["S15.3","Verletzung der V. jugularis interna","Verletzung von Blutgefäßen in Halshöhe"]
["S15.3+","Verletzung der V. jugularis interna","Verletzung von Blutgefäßen in Halshöhe"]
["S15.7","Verletzung mehrerer Blutgefäße in Höhe des Halses","Verletzung von Blutgefäßen in Halshöhe"]
["S15.7+","Verletzung mehrerer Blutgefäße in Höhe des Halses","Verletzung von Blutgefäßen in Halshöhe"]
["S18","Traumatische Amputation in Halshöhe","Traumatische Amputation in Halshöhe"]
["S18+","Traumatische Amputation in Halshöhe","Traumatische Amputation in Halshöhe"]

{"sheet":"KI-Filter","index":5,"n_rows":1002,"n_cols":3,"rows_kept":1002,"cut":false,"hidden":true,"merged":[]}
["KI-Filter","KI-Art","Beschreibung"]
["A15","absolut","Tuberkulose der Atmungsorgane, bakteriologisch, molekularbiologisch oder histologisch gesichert"]
["A15.0","absolut","Lungentuberkulose, durch mikroskopische Untersuchung des Sputums gesichert, mit oder ohne Nachweis durch Kultur oder molekularbiologische Verfahren"]
["A15.1","absolut","Lungentuberkulose, nur durch Kultur gesichert"]
["A15.2","absolut","Lungentuberkulose, histologisch gesichert"]
["A15.3","absolut","Lungentuberkulose, durch sonstige und nicht näher bezeichnete Untersuchungsverfahren gesichert"]
["A15.4","absolut","Tuberkulose der intrathorakalen Lymphknoten, bakteriologisch, molekularbiologisch oder histologisch gesichert"]
["A15.5","absolut","Tuberkulose des Larynx, der Trachea und der Bronchien, bakteriologisch, molekularbiologisch oder histologisch gesichert"]
["A15.6","absolut","Tuberkulöse Pleuritis, bakteriologisch, molekularbiologisch oder histologisch gesichert"]
["A15.7","absolut","Primäre Tuberkulose der Atmungsorgane, bakteriologisch, molekularbiologisch oder histologisch gesichert"]
["A15.8","absolut","Sonstige Tuberkulose der Atmungsorgane, bakteriologisch, molekularbiologisch oder histologisch gesichert"]
["A15.9","absolut","Nicht näher bezeichnete Tuberkulose der Atmungsorgane, bakteriologisch, molekularbiologisch oder histologisch gesichert"]
["A16","absolut","Tuberkulose der Atmungsorgane, weder bakteriologisch, molekularbiologisch noch histologisch gesichert"]
["A16.0","absolut","Lungentuberkulose, weder bakteriologisch, molekularbiologisch noch histologisch gesichert"]
["A16.1","absolut","Lungentuberkulose, bakteriologische, molekularbiologische und histologische Untersuchung nicht durchgeführt"]
["A16.2","absolut","Lungentuberkulose ohne Angabe einer bakteriologischen, molekularbiologischen oder histologischen Sicherung"]
["A16.3","absolut","Tuberkulose der intrathorakalen Lymphknoten ohne Angabe einer bakteriologischen, molekularbiologischen oder histologischen Sicherung"]
["A16.4","absolut","Tuberkulose des Larynx, der Trachea und der Bronchien ohne Angabe einer bakteriologischen, molekularbiologischen oder histologischen Sicherung"]
["A16.5","absolut","Tuberkulöse Pleuritis ohne Angabe einer bakteriologischen, molekularbiologischen oder histologischen Sicherung"]
["A16.7","absolut","Primäre Tuberkulose der Atmungsorgane ohne Angabe einer bakteriologischen, molekularbiologischen oder histologischen Sicherung"]
["A16.8","absolut","Sonstige Tuberkulose der Atmungsorgane ohne Angabe einer bakteriologischen, molekularbiologischen oder histologischen Sicherung"]
["A16.9","absolut","Nicht näher bezeichnete Tuberkulose der Atmungsorgane ohne Angabe einer bakteriologischen, molekularbiologischen oder histologischen Sicherung"]
["A17","absolut","Tuberkulose des Nervensystems"]
["A17.0","absolut","Tuberkulöse Meningitis"]
["A17.1","absolut","Meningeales Tuberkulom"]
["A17.8","absolut","Sonstige Tuberkulose des Nervensystems"]
["A17.9","absolut","Tuberkulose des Nervensystems, nicht näher bezeichnet"]
["A18","absolut","Tuberkulose sonstiger Organe"]
["A18.0","absolut","Tuberkulose der Knochen und Gelenke"]
["A18.1","absolut","Tuberkulose des Urogenitalsystems"]
["A18.2","absolut","Tuberkulose peripherer Lymphknoten"]
["A18.3","absolut","Tuberkulose des Darmes, des Peritoneums und der Mesenteriallymphknoten"]
["A18.4","absolut","Tuberkulose der Haut und des Unterhautgewebes"]
["A18.5","absolut","Tuberkulose des Auges"]
["A18.6","absolut","Tuberkulose des Ohres"]
["A18.7","absolut","Tuberkulose der Nebennieren"]
["A18.8","absolut","Tuberkulose sonstiger näher bezeichneter Organe"]
["A19","absolut","Miliartuberkulose"]
["A19.0","absolut","Akute Miliartuberkulose einer einzelnen näher bezeichneten Lokalisation"]
["A19.1","absolut","Akute Miliartuberkulose mehrerer Lokalisationen"]
["A19.2","absolut","Akute Miliartuberkulose, nicht näher bezeichnet"]
["A19.8","absolut","Sonstige Miliartuberkulose"]
["A19.9","absolut","Miliartuberkulose, nicht näher bezeichnet"]
["A31","relativ","Infektion durch sonstige Mykobakterien"]
["A31.0","relativ","Infektion der Lunge durch sonstige Mykobakterien"]
["A31.1","relativ","Infektion der Haut durch sonstige Mykobakterien"]
["A31.8","relativ","Sonstige Infektionen durch Mykobakterien"]
["A31.80","relativ","Disseminierte atypische Mykobakteriose"]
["A31.88","relativ","Sonstige Infektionen durch Mykobakterien"]
["A31.9","relativ","Infektion durch Mykobakterien, nicht näher bezeichnet"]
["A39.1","relativ","Waterhouse-Friderichsen-Syndrom"]
["A40","relativ","Streptokokkensepsis"]
["A40.0","relativ","Sepsis durch Streptokokken, Gruppe A"]
["A40.1","relativ","Sepsis durch Streptokokken, Gruppe B"]
["A40.2","relativ","Sepsis durch Streptokokken, Gruppe D, und Enterokokken"]
["A40.3","relativ","Sepsis durch Streptococcus pneumoniae"]
["A40.8","relativ","Sonstige Sepsis durch Streptokokken"]
["A40.9","relativ","Sepsis durch Streptokokken, nicht näher bezeichnet"]
["A41","relativ","Sonstige Sepsis"]
["A41.0","relativ","Sepsis durch Staphylococcus aureus"]
["A41.1","relativ","Sepsis durch sonstige näher bezeichnete Staphylokokken"]
["A41.2","relativ","Sepsis durch nicht näher bezeichnete Staphylokokken"]
["A41.3","relativ","Sepsis durch Haemophilus influenzae"]
["A41.4","relativ","Sepsis durch Anaerobier"]
["A41.5","relativ","Sepsis durch sonstige gramnegative Erreger"]
["A41.51","relativ","Sepsis: Escherichia coli [E. coli]"]
["A41.52","relativ","Sepsis: Pseudomonas"]
["A41.58","relativ","Sepsis: Sonstige gramnegative Erreger"]
["A41.8","relativ","Sonstige näher bezeichnete Sepsis"]
["A41.9","relativ","Sepsis, nicht näher bezeichnet"]
["A81","relativ","Atypische Virusinfektionen des Zentralnervensystems"]
["A81.0","absolut","Creutzfeldt-Jakob-Krankheit"]
["A81.1","absolut","Subakute sklerosierende Panenzephalitis"]
["A81.2","absolut","Progressive multifokale Leukenzephalopathie"]
["A81.8","absolut","Sonstige atypische Virusinfektionen des Zentralnervensystems"]
["A81.9","absolut","Atypische Virusinfektion des Zentralnervensystems, nicht näher bezeichnet"]
["A82","absolut","Tollwut [Rabies]"]
["A82.0","absolut","Wildtier-Tollwut"]
["A82.1","absolut","Haustier-Tollwut"]
["A82.9","absolut","Tollwut, nicht näher bezeichnet"]
["B15","absolut","Akute Virushepatitis A"]
["B15.0","absolut","Virushepatitis A mit Coma hepaticum"]
["B15.9","absolut","Virushepatitis A ohne Coma hepaticum"]
["B16","relativ","Akute Virushepatitis B"]
["B16.0","absolut","Akute Virushepatitis B mit Delta-Virus (Begleitinfektion) und mit Coma hepaticum"]
["B16.1","absolut","Akute Virushepatitis B mit Delta-Virus (Begleitinfektion) ohne Coma hepaticum"]
["B16.2","relativ","Akute Virushepatitis B ohne Delta-Virus mit Coma hepaticum"]
["B16.9","relativ","Akute Virushepatitis B ohne Delta-Virus und ohne Coma hepaticum"]
["B17","relativ","Sonstige akute Virushepatitis"]
["B17.0","absolut","Akute Delta-Virus- (Super-) Infektion eines Hepatitis-B- (Virus-) Trägers"]
["B17.1","relativ","Akute Virushepatitis C"]
["B17.2","relativ","Akute Virushepatitis E"]
["B17.8","relativ","Sonstige näher bezeichnete akute Virushepatitis"]
["B17.9","relativ","Akute Virushepatitis, nicht näher bezeichnet"]
["B19","relativ","Nicht näher bezeichnete Virushepatitis"]
["B19.0","relativ","Nicht näher bezeichnete Virushepatitis mit hepatischem Koma"]
["B19.9","relativ","Nicht näher bezeichnete Virushepatitis ohne hepatisches Koma"]
["B20","absolut","Infektiöse und parasitäre Krankheiten infolge HIV-Krankheit [Humane Immundefizienz-Viruskrankheit]"]
["B21","absolut","Bösartige Neubildungen infolge HIV-Krankheit [Humane Immundefizienz-Viruskrankheit]"]
["B22","absolut","Sonstige näher bezeichnete Krankheiten infolge HIV-Krankheit [Humane Immundefizienz-Viruskrankheit]"]
["B23","absolut","Sonstige Krankheitszustände infolge HIV-Krankheit [Humane Immundefizienz-Viruskrankheit]"]
["B23.0","relativ","Akutes HIV-Infektionssyndrom"]
["B23.8","absolut","Sonstige näher bezeichnete Krankheitszustände infolge HIV-Krankheit"]
["B24","absolut","Nicht näher bezeichnete HIV-Krankheit [Humane Immundefizienz-Viruskrankheit]"]
["B25.1","relativ","Hepatitis durch Zytomegalieviren"]
["B58.1","relativ","Hepatitis durch Toxoplasmen"]
["B90","relativ","Folgezustände der Tuberkulose"]
["B90.0","relativ","Folgezustände einer Tuberkulose des Zentralnervensystems"]
["B90.1","relativ","Folgezustände einer Tuberkulose des Urogenitalsystems"]
["B90.2","relativ","Folgezustände einer Tuberkulose der Knochen und der Gelenke"]
["B90.8","relativ","Folgezustände einer Tuberkulose sonstiger Organe"]
["B90.9","relativ","Folgezustände einer Tuberkulose der Atmungsorgane und einer nicht näher bezeichneten Tuberkulose"]
["C00","relativ","Bösartige Neubildung der Lippe"]
["C00.0","relativ","Bösartige Neubildung: Äußere Oberlippe"]
["C00.1","relativ","Bösartige Neubildung: Äußere Unterlippe"]
["C00.2","relativ","Bösartige Neubildung: Äußere Lippe, nicht näher bezeichnet"]
["C00.3","relativ","Bösartige Neubildung: Oberlippe, Innenseite"]
["C00.4","relativ","Bösartige Neubildung: Unterlippe, Innenseite"]
["C00.5","relativ","Bösartige Neubildung: Lippe, nicht näher bezeichnet, Innenseite"]
["C00.6","relativ","Bösartige Neubildung: Lippenkommissur"]
["C00.8","relativ","Bösartige Neubildung: Lippe, mehrere Teilbereiche überlappend"]
["C00.9","relativ","Bösartige Neubildung: Lippe, nicht näher bezeichnet"]
["C01","absolut","Bösartige Neubildung des Zungengrundes"]
["C02","absolut","Bösartige Neubildung sonstiger und nicht näher bezeichneter Teile der Zunge"]
["C02.0","absolut","Bösartige Neubildung: Zungenrücken"]
["C02.1","absolut","Bösartige Neubildung: Zungenrand"]
["C02.2","absolut","Bösartige Neubildung: Zungenunterfläche"]
["C02.3","absolut","Bösartige Neubildung: Vordere zwei Drittel der Zunge, Bereich nicht näher bezeichnet"]
["C02.4","absolut","Bösartige Neubildung: Zungentonsille"]
["C02.8","absolut","Bösartige Neubildung: Zunge, mehrere Teilbereiche überlappend"]
["C02.9","absolut","Bösartige Neubildung: Zunge, nicht näher bezeichnet"]
["C03","absolut","Bösartige Neubildung des Zahnfleisches"]
["C03.0","absolut","Bösartige Neubildung: Oberkieferzahnfleisch"]
["C03.1","absolut","Bösartige Neubildung: Unterkieferzahnfleisch"]
["C03.9","absolut","Bösartige Neubildung: Zahnfleisch, nicht näher bezeichnet"]
["C04","absolut","Bösartige Neubildung des Mundbodens"]
["C04.0","absolut","Bösartige Neubildung: Vorderer Teil des Mundbodens"]
["C04.1","absolut","Bösartige Neubildung: Seitlicher Teil des Mundbodens"]
["C04.8","absolut","Bösartige Neubildung: Mundboden, mehrere Teilbereiche überlappend"]
["C04.9","absolut","Bösartige Neubildung: Mundboden, nicht näher bezeichnet"]
["C05","absolut","Bösartige Neubildung des Gaumens"]
["C05.0","absolut","Bösartige Neubildung: Harter Gaumen"]
["C05.1","absolut","Bösartige Neubildung: Weicher Gaumen"]
["C05.2","absolut","Bösartige Neubildung: Uvula"]
["C05.8","absolut","Bösartige Neubildung: Gaumen, mehrere Teilbereiche überlappend"]
["C05.9","absolut","Bösartige Neubildung: Gaumen, nicht näher bezeichnet"]
["C06","absolut","Bösartige Neubildung sonstiger und nicht näher bezeichneter Teile des Mundes"]
["C06.0","absolut","Bösartige Neubildung: Wangenschleimhaut"]
["C06.1","absolut","Bösartige Neubildung: Vestibulum oris"]
["C06.2","absolut","Bösartige Neubildung: Retromolarregion"]
["C06.8","absolut","Bösartige Neubildung: Sonstige und nicht näher bezeichnete Teile des Mundes, mehrere Teilbereiche überlappend"]
["C06.9","absolut","Bösartige Neubildung: Mund, nicht näher bezeichnet"]
["C07","absolut","Bösartige Neubildung der Parotis"]
["C08","absolut","Bösartige Neubildung sonstiger und nicht näher bezeichneter großer Speicheldrüsen"]
["C08.0","absolut","Bösartige Neubildung: Glandula submandibularis"]
["C08.1","absolut","Bösartige Neubildung: Glandula sublingualis"]
["C08.8","absolut","Bösartige Neubildung: Große Speicheldrüsen, mehrere Teilbereiche überlappend"]
["C08.9","absolut","Bösartige Neubildung: Große Speicheldrüse, nicht näher bezeichnet"]
["C09","absolut","Bösartige Neubildung der Tonsille"]
["C09.0","absolut","Bösartige Neubildung: Fossa tonsillaris"]
["C09.1","absolut","Bösartige Neubildung: Gaumenbogen (vorderer) (hinterer)"]
["C09.8","absolut","Bösartige Neubildung: Tonsille, mehrere Teilbereiche überlappend"]
["C09.9","absolut","Bösartige Neubildung: Tonsille, nicht näher bezeichnet"]
["C10","absolut","Bösartige Neubildung des Oropharynx"]
["C10.0","absolut","Bösartige Neubildung: Vallecula epiglottica"]
["C10.1","absolut","Bösartige Neubildung: Vorderfläche der Epiglottis"]
["C10.2","absolut","Bösartige Neubildung: Seitenwand des Oropharynx"]
["C10.3","absolut","Bösartige Neubildung: Hinterwand des Oropharynx"]
["C10.4","absolut","Bösartige Neubildung: Kiemengang"]
["C10.8","absolut","Bösartige Neubildung: Oropharynx, mehrere Teilbereiche überlappend"]
["C10.9","absolut","Bösartige Neubildung: Oropharynx, nicht näher bezeichnet"]
["C11","absolut","Bösartige Neubildung des Nasopharynx"]
["C11.0","absolut","Bösartige Neubildung: Obere Wand des Nasopharynx"]
["C11.1","absolut","Bösartige Neubildung: Hinterwand des Nasopharynx"]
["C11.2","absolut","Bösartige Neubildung: Seitenwand des Nasopharynx"]
["C11.3","absolut","Bösartige Neubildung: Vorderwand des Nasopharynx"]
["C11.8","absolut","Bösartige Neubildung: Nasopharynx, mehrere Teilbereiche überlappend"]
["C11.9","absolut","Bösartige Neubildung: Nasopharynx, nicht näher bezeichnet"]
["C12","absolut","Bösartige Neubildung des Recessus piriformis"]
["C13","absolut","Bösartige Neubildung des Hypopharynx"]
["C13.0","absolut","Bösartige Neubildung: Regio postcricoidea"]
["C13.1","absolut","Bösartige Neubildung: Aryepiglottische Falte, hypopharyngeale Seite"]
["C13.2","absolut","Bösartige Neubildung: Hinterwand des Hypopharynx"]
["C13.8","absolut","Bösartige Neubildung: Hypopharynx, mehrere Teilbereiche überlappend"]
["C13.9","absolut","Bösartige Neubildung: Hypopharynx, nicht näher bezeichnet"]
["C14","absolut","Bösartige Neubildung sonstiger und ungenau bezeichneter Lokalisationen der Lippe, der Mundhöhle und des Pharynx"]
["C14.0","absolut","Bösartige Neubildung: Pharynx, nicht näher bezeichnet"]
["C14.2","absolut","Bösartige Neubildung: Lymphatischer Rachenring [Waldeyer]"]
["C14.8","absolut","Bösartige Neubildung: Lippe, Mundhöhle und Pharynx, mehrere Teilbereiche überlappend"]
["C15","absolut","Bösartige Neubildung des Ösophagus"]
["C15.0","absolut","Bösartige Neubildung: Zervikaler Ösophagus"]
["C15.1","absolut","Bösartige Neubildung: Thorakaler Ösophagus"]
["C15.2","absolut","Bösartige Neubildung: Abdominaler Ösophagus"]
["C15.3","absolut","Bösartige Neubildung: Ösophagus, oberes Drittel"]
["C15.4","absolut","Bösartige Neubildung: Ösophagus, mittleres Drittel"]
["C15.5","absolut","Bösartige Neubildung: Ösophagus, unteres Drittel"]
["C15.8","absolut","Bösartige Neubildung: Ösophagus, mehrere Teilbereiche überlappend"]
["C15.9","absolut","Bösartige Neubildung: Ösophagus, nicht näher bezeichnet"]
["C16","absolut","Bösartige Neubildung des Magens"]
["C16.0","absolut","Bösartige Neubildung: Kardia"]
["C16.1","absolut","Bösartige Neubildung: Fundus ventriculi"]
["C16.2","absolut","Bösartige Neubildung: Corpus ventriculi"]
["C16.3","absolut","Bösartige Neubildung: Antrum pyloricum"]
["C16.4","absolut","Bösartige Neubildung: Pylorus"]
["C16.5","absolut","Bösartige Neubildung: Kleine Kurvatur des Magens, nicht näher bezeichnet"]
["C16.6","absolut","Bösartige Neubildung: Große Kurvatur des Magens, nicht näher bezeichnet"]
["C16.8","absolut","Bösartige Neubildung: Magen, mehrere Teilbereiche überlappend"]
["C16.9","absolut","Bösartige Neubildung: Magen, nicht näher bezeichnet"]
["C17","absolut","Bösartige Neubildung des Dünndarmes"]
["C17.0","absolut","Bösartige Neubildung: Duodenum"]
["C17.1","absolut","Bösartige Neubildung: Jejunum"]
["C17.2","absolut","Bösartige Neubildung: Ileum"]
["C17.3","absolut","Bösartige Neubildung: Meckel-Divertikel"]
["C17.8","absolut","Bösartige Neubildung: Dünndarm, mehrere Teilbereiche überlappend"]
["C17.9","absolut","Bösartige Neubildung: Dünndarm, nicht näher bezeichnet"]
["C18","absolut","Bösartige Neubildung des Kolons"]
["C18.0","absolut","Bösartige Neubildung: Zäkum"]
["C18.1","absolut","Bösartige Neubildung: Appendix vermiformis"]
["C18.2","absolut","Bösartige Neubildung: Colon ascendens"]
["C18.3","absolut","Bösartige Neubildung: Flexura coli dextra [hepatica]"]
["C18.4","absolut","Bösartige Neubildung: Colon transversum"]
["C18.5","absolut","Bösartige Neubildung: Flexura coli sinistra [lienalis]"]
["C18.6","absolut","Bösartige Neubildung: Colon descendens"]
["C18.7","absolut","Bösartige Neubildung: Colon sigmoideum"]
["C18.8","absolut","Bösartige Neubildung: Kolon, mehrere Teilbereiche überlappend"]
["C18.9","absolut","Bösartige Neubildung: Kolon, nicht näher bezeichnet"]
["C19","absolut","Bösartige Neubildung am Rektosigmoid, Übergang"]
["C20","absolut","Bösartige Neubildung des Rektums"]
["C21","absolut","Bösartige Neubildung des Anus und des Analkanals"]
["C21.0","absolut","Bösartige Neubildung: Anus, nicht näher bezeichnet"]
["C21.1","absolut","Bösartige Neubildung: Analkanal"]
["C21.2","absolut","Bösartige Neubildung: Kloakenregion"]
["C21.8","absolut","Bösartige Neubildung: Rektum, Anus und Analkanal, mehrere Teilbereiche überlappend"]
["C22","absolut","Bösartige Neubildung der Leber und der intrahepatischen Gallengänge"]
["C22.0","absolut","Leberzellkarzinom"]
["C22.1","absolut","Intrahepatisches Gallengangskarzinom"]
["C22.2","absolut","Hepatoblastom"]
["C22.3","absolut","Angiosarkom der Leber"]
["C22.4","absolut","Sonstige Sarkome der Leber"]
["C22.7","absolut","Sonstige näher bezeichnete Karzinome der Leber"]
["C22.9","absolut","Bösartige Neubildung: Leber, nicht näher bezeichnet"]
["C23","absolut","Bösartige Neubildung der Gallenblase"]
["C24","absolut","Bösartige Neubildung sonstiger und nicht näher bezeichneter Teile der Gallenwege"]
["C24.0","absolut","Bösartige Neubildung: Extrahepatischer Gallengang"]
["C24.1","absolut","Bösartige Neubildung: Ampulla hepatopancreatica [Ampulla Vateri]"]
["C24.8","absolut","Bösartige Neubildung: Gallenwege, mehrere Teilbereiche überlappend"]
["C24.9","absolut","Bösartige Neubildung: Gallenwege, nicht näher bezeichnet"]
["C25","absolut","Bösartige Neubildung des Pankreas"]
["C25.0","absolut","Bösartige Neubildung: Pankreaskopf"]
["C25.1","absolut","Bösartige Neubildung: Pankreaskörper"]
["C25.2","absolut","Bösartige Neubildung: Pankreasschwanz"]
["C25.3","absolut","Bösartige Neubildung: Ductus pancreaticus"]
["C25.4","absolut","Bösartige Neubildung: Endokriner Drüsenanteil des Pankreas"]
["C25.7","absolut","Bösartige Neubildung: Sonstige Teile des Pankreas"]
["C25.8","absolut","Bösartige Neubildung: Pankreas, mehrere Teilbereiche überlappend"]
["C25.9","absolut","Bösartige Neubildung: Pankreas, nicht näher bezeichnet"]
["C26","absolut","Bösartige Neubildung sonstiger und ungenau bezeichneter Verdauungsorgane"]
["C26.0","absolut","Bösartige Neubildung: Intestinaltrakt, Teil nicht näher bezeichnet"]
["C26.1","absolut","Bösartige Neubildung: Milz"]
["C26.8","absolut","Bösartige Neubildung: Verdauungssystem, mehrere Teilbereiche überlappend"]
["C26.9","absolut","Bösartige Neubildung: Ungenau bezeichnete Lokalisationen des Verdauungssystems"]
["C30","absolut","Bösartige Neubildung der Nasenhöhle und des Mittelohres"]
["C30.0","absolut","Bösartige Neubildung: Nasenhöhle"]
["C30.1","absolut","Bösartige Neubildung: Mittelohr"]
["C31","absolut","Bösartige Neubildung der Nasennebenhöhlen"]
["C31.0","absolut","Bösartige Neubildung: Sinus maxillaris [Kieferhöhle]"]
["C31.1","absolut","Bösartige Neubildung: Sinus ethmoidalis [Siebbeinzellen]"]
["C31.2","absolut","Bösartige Neubildung: Sinus frontalis [Stirnhöhle]"]
["C31.3","absolut","Bösartige Neubildung: Sinus sphenoidalis [Keilbeinhöhle]"]
["C31.8","absolut","Bösartige Neubildung: Nasennebenhöhlen, mehrere Teilbereiche überlappend"]
["C31.9","absolut","Bösartige Neubildung: Nasennebenhöhle, nicht näher bezeichnet"]
["C32","absolut","Bösartige Neubildung des Larynx"]
["C32.0","absolut","Bösartige Neubildung: Glottis"]
["C32.1","absolut","Bösartige Neubildung: Supraglottis"]
["C32.2","absolut","Bösartige Neubildung: Subglottis"]
["C32.3","absolut","Bösartige Neubildung: Larynxknorpel"]
["C32.8","absolut","Bösartige Neubildung: Larynx, mehrere Teilbereiche überlappend"]
["C32.9","absolut","Bösartige Neubildung: Larynx, nicht näher bezeichnet"]
["C33","absolut","Bösartige Neubildung der Trachea"]
["C34","absolut","Bösartige Neubildung der Bronchien und der Lunge"]
["C34.0","absolut","Bösartige Neubildung: Hauptbronchus"]
["C34.1","absolut","Bösartige Neubildung: Oberlappen (-Bronchus)"]
["C34.2","absolut","Bösartige Neubildung: Mittellappen (-Bronchus)"]
["C34.3","absolut","Bösartige Neubildung: Unterlappen (-Bronchus)"]
["C34.8","absolut","Bösartige Neubildung: Bronchus und Lunge, mehrere Teilbereiche überlappend"]
["C34.9","absolut","Bösartige Neubildung: Bronchus oder Lunge, nicht näher bezeichnet"]
["C37","absolut","Bösartige Neubildung des Thymus"]
["C38","absolut","Bösartige Neubildung des Herzens, des Mediastinums und der Pleura"]
["C38.0","absolut","Bösartige Neubildung: Herz"]
["C38.1","absolut","Bösartige Neubildung: Vorderes Mediastinum"]
["C38.2","absolut","Bösartige Neubildung: Hinteres Mediastinum"]
["C38.3","absolut","Bösartige Neubildung: Mediastinum, Teil nicht näher bezeichnet"]
["C38.4","absolut","Bösartige Neubildung: Pleura"]
["C38.8","absolut","Bösartige Neubildung: Herz, Mediastinum und Pleura, mehrere Teilbereiche überlappend"]
["C39","absolut","Bösartige Neubildung sonstiger und ungenau bezeichneter Lokalisationen des Atmungssystems und sonstiger intrathorakaler Organe"]
["C39.0","absolut","Bösartige Neubildung: Obere Atemwege, Teil nicht näher bezeichnet"]
["C39.8","absolut","Bösartige Neubildung: Atmungsorgane und sonstige intrathorakale Organe, mehrere Teilbereiche überlappend"]
["C39.9","absolut","Bösartige Neubildung: Ungenau bezeichnete Lokalisationen des Atmungssystems"]
["C40","absolut","Bösartige Neubildung des Knochens und des Gelenkknorpels der Extremitäten"]
["C40.0","absolut","Bösartige Neubildung des Knochens und des Gelenkknorpels: Skapula und lange Knochen der oberen Extremität"]
["C40.1","absolut","Bösartige Neubildung des Knochens und des Gelenkknorpels: Kurze Knochen der oberen Extremität"]
["C40.2","absolut","Bösartige Neubildung des Knochens und des Gelenkknorpels: Lange Knochen der unteren Extremität"]
["C40.3","absolut","Bösartige Neubildung des Knochens und des Gelenkknorpels: Kurze Knochen der unteren Extremität"]
["C40.8","absolut","Bösartige Neubildung: Knochen und Gelenkknorpel der Extremitäten, mehrere Teilbereiche überlappend"]
["C40.9","absolut","Bösartige Neubildung: Knochen und Gelenkknorpel einer Extremität, nicht näher bezeichnet"]
["C41","absolut","Bösartige Neubildung des Knochens und des Gelenkknorpels sonstiger und nicht näher bezeichneter Lokalisationen"]
["C41.0","absolut","Bösartige Neubildung des Knochens und des Gelenkknorpels: Knochen des Hirn- und Gesichtsschädels"]
["C41.01","absolut","Bösartige Neubildung des Knochens und des Gelenkknorpels: Kraniofazial"]
["C41.02","absolut","Bösartige Neubildung des Knochens und des Gelenkknorpels: Maxillofazial"]
["C41.1","absolut","Bösartige Neubildung des Knochens und des Gelenkknorpels: Unterkieferknochen"]
["C41.2","absolut","Bösartige Neubildung des Knochens und des Gelenkknorpels: Wirbelsäule"]
["C41.3","absolut","Bösartige Neubildung des Knochens und des Gelenkknorpels: Rippen, Sternum und Klavikula"]
["C41.30","absolut","Bösartige Neubildung des Knochens und des Gelenkknorpels: Rippen"]
["C41.31","absolut","Bösartige Neubildung des Knochens und des Gelenkknorpels: Sternum"]
["C41.32","absolut","Bösartige Neubildung des Knochens und des Gelenkknorpels: Klavikula"]
["C41.4","absolut","Bösartige Neubildung des Knochens und des Gelenkknorpels: Beckenknochen"]
["C41.8","absolut","Bösartige Neubildung: Knochen und Gelenkknorpel, mehrere Teilbereiche überlappend"]
["C41.9","absolut","Bösartige Neubildung: Knochen und Gelenkknorpel, nicht näher bezeichnet"]
["C43","absolut","Bösartiges Melanom der Haut"]
["C43.0","absolut","Bösartiges Melanom der Lippe"]
["C43.1","absolut","Bösartiges Melanom des Augenlides, einschließlich Kanthus"]
["C43.2","absolut","Bösartiges Melanom des Ohres und des äußeren Gehörganges"]
["C43.3","absolut","Bösartiges Melanom sonstiger und nicht näher bezeichneter Teile des Gesichtes"]
["C43.4","absolut","Bösartiges Melanom der behaarten Kopfhaut und des Halses"]
["C43.5","absolut","Bösartiges Melanom des Rumpfes"]
["C43.6","absolut","Bösartiges Melanom der oberen Extremität, einschließlich Schulter"]
["C43.7","absolut","Bösartiges Melanom der unteren Extremität, einschließlich Hüfte"]
["C43.8","absolut","Bösartiges Melanom der Haut, mehrere Teilbereiche überlappend"]
["C43.9","absolut","Bösartiges Melanom der Haut, nicht näher bezeichnet"]
["C44","relativ","Sonstige bösartige Neubildungen der Haut"]
["C44.0","relativ","Sonstige bösartige Neubildungen: Lippenhaut"]
["C44.1","relativ","Sonstige bösartige Neubildungen: Haut des Augenlides, einschließlich Kanthus"]
["C44.2","relativ","Sonstige bösartige Neubildungen: Haut des Ohres und des äußeren Gehörganges"]
["C44.3","relativ","Sonstige bösartige Neubildungen: Haut sonstiger und nicht näher bezeichneter Teile des Gesichtes"]
["C44.4","relativ","Sonstige bösartige Neubildungen: Behaarte Kopfhaut und Haut des Halses"]
["C44.5","relativ","Sonstige bösartige Neubildungen: Haut des Rumpfes"]
["C44.6","relativ","Sonstige bösartige Neubildungen: Haut der oberen Extremität, einschließlich Schulter"]
["C44.7","relativ","Sonstige bösartige Neubildungen: Haut der unteren Extremität, einschließlich Hüfte"]
["C44.8","relativ","Sonstige bösartige Neubildungen: Haut, mehrere Teilbereiche überlappend"]
["C44.9","relativ","Bösartige Neubildung der Haut, nicht näher bezeichnet"]
["C45","absolut","Mesotheliom"]
["C45.0","absolut","Mesotheliom der Pleura"]
["C45.1","absolut","Mesotheliom des Peritoneums"]
["C45.2","absolut","Mesotheliom des Perikards"]
["C45.7","absolut","Mesotheliom sonstiger Lokalisationen"]
["C45.9","absolut","Mesotheliom, nicht näher bezeichnet"]
["C46","absolut","Kaposi-Sarkom [Sarcoma idiopathicum multiplex haemorrhagicum]"]
["C46.0","absolut","Kaposi-Sarkom der Haut"]
["C46.1","absolut","Kaposi-Sarkom des Weichteilgewebes"]
["C46.2","absolut","Kaposi-Sarkom des Gaumens"]
["C46.3","absolut","Kaposi-Sarkom der Lymphknoten"]
["C46.7","absolut","Kaposi-Sarkom sonstiger Lokalisationen"]
["C46.8","absolut","Kaposi-Sarkom mehrerer Organe"]
["C46.9","absolut","Kaposi-Sarkom, nicht näher bezeichnet"]
["C47","relativ","Bösartige Neubildung der peripheren Nerven und des autonomen Nervensystems"]
["C47.0","relativ","Bösartige Neubildung: Periphere Nerven des Kopfes, des Gesichtes und des Halses"]
["C47.1","relativ","Bösartige Neubildung: Periphere Nerven der oberen Extremität, einschließlich Schulter"]
["C47.2","relativ","Bösartige Neubildung: Periphere Nerven der unteren Extremität, einschließlich Hüfte"]
["C47.3","relativ","Bösartige Neubildung: Periphere Nerven des Thorax"]
["C47.4","relativ","Bösartige Neubildung: Periphere Nerven des Abdomens"]
["C47.5","relativ","Bösartige Neubildung: Periphere Nerven des Beckens"]
["C47.6","relativ","Bösartige Neubildung: Periphere Nerven des Rumpfes, nicht näher bezeichnet"]
["C47.8","relativ","Bösartige Neubildung: Periphere Nerven und autonomes Nervensystem, mehrere Teilbereiche überlappend"]
["C47.9","relativ","Bösartige Neubildung: Periphere Nerven und autonomes Nervensystem, nicht näher bezeichnet"]
["C48","absolut","Bösartige Neubildung des Retroperitoneums und des Peritoneums"]
["C48.0","absolut","Bösartige Neubildung: Retroperitoneum"]
["C48.1","absolut","Bösartige Neubildung: Näher bezeichnete Teile des Peritoneums"]
["C48.2","absolut","Bösartige Neubildung: Peritoneum, nicht näher bezeichnet"]
["C48.8","absolut","Bösartige Neubildung: Retroperitoneum und Peritoneum, mehrere Teilbereiche überlappend"]
["C49","absolut","Bösartige Neubildung sonstigen Bindegewebes und anderer Weichteilgewebe"]
["C49.0","absolut","Bösartige Neubildung: Bindegewebe und andere Weichteilgewebe des Kopfes, des Gesichtes und des Halses"]
["C49.1","absolut","Bösartige Neubildung: Bindegewebe und andere Weichteilgewebe der oberen Extremität, einschließlich Schulter"]
["C49.2","absolut","Bösartige Neubildung: Bindegewebe und andere Weichteilgewebe der unteren Extremität, einschließlich Hüfte"]
["C49.3","absolut","Bösartige Neubildung: Bindegewebe und andere Weichteilgewebe des Thorax"]
["C49.4","absolut","Bösartige Neubildung: Bindegewebe und andere Weichteilgewebe des Abdomens"]
["C49.5","absolut","Bösartige Neubildung: Bindegewebe und andere Weichteilgewebe des Beckens"]
["C49.6","absolut","Bösartige Neubildung: Bindegewebe und andere Weichteilgewebe des Rumpfes, nicht näher bezeichnet"]
["C49.8","absolut","Bösartige Neubildung: Bindegewebe und andere Weichteilgewebe, mehrere Teilbereiche überlappend"]
["C49.9","absolut","Bösartige Neubildung: Bindegewebe und andere Weichteilgewebe, nicht näher bezeichnet"]
["C50","relativ","Bösartige Neubildung der Brustdrüse [Mamma]"]
["C50.0","relativ","Bösartige Neubildung: Brustwarze und Warzenhof"]
["C50.1","relativ","Bösartige Neubildung: Zentraler Drüsenkörper der Brustdrüse"]
["C50.2","relativ","Bösartige Neubildung: Oberer innerer Quadrant der Brustdrüse"]
["C50.3","relativ","Bösartige Neubildung: Unterer innerer Quadrant der Brustdrüse"]
["C50.4","relativ","Bösartige Neubildung: Oberer äußerer Quadrant der Brustdrüse"]
["C50.5","relativ","Bösartige Neubildung: Unterer äußerer Quadrant der Brustdrüse"]
["C50.6","relativ","Bösartige Neubildung: Recessus axillaris der Brustdrüse"]
["C50.8","relativ","Bösartige Neubildung: Brustdrüse, mehrere Teilbereiche überlappend"]
["C50.9","relativ","Bösartige Neubildung: Brustdrüse, nicht näher bezeichnet"]
["C51","relativ","Bösartige Neubildung der Vulva"]
["C51.0","relativ","Bösartige Neubildung der Vulva: Labium majus"]
["C51.1","relativ","Bösartige Neubildung der Vulva: Labium minus"]
["C51.2","relativ","Bösartige Neubildung der Vulva: Klitoris"]
["C51.8","relativ","Bösartige Neubildung: Vulva, mehrere Teilbereiche überlappend"]
["C51.9","relativ","Bösartige Neubildung: Vulva, nicht näher bezeichnet"]
["C52","relativ","Bösartige Neubildung der Vagina"]
["C53","relativ","Bösartige Neubildung der Cervix uteri"]
["C53.0","relativ","Bösartige Neubildung: Endozervix"]
["C53.1","relativ","Bösartige Neubildung: Ektozervix"]
["C53.8","relativ","Bösartige Neubildung: Cervix uteri, mehrere Teilbereiche überlappend"]
["C53.9","relativ","Bösartige Neubildung: Cervix uteri, nicht näher bezeichnet"]
["C54","relativ","Bösartige Neubildung des Corpus uteri"]
["C54.0","relativ","Bösartige Neubildung: Isthmus uteri"]
["C54.1","relativ","Bösartige Neubildung: Endometrium"]
["C54.2","relativ","Bösartige Neubildung: Myometrium"]
["C54.3","relativ","Bösartige Neubildung: Fundus uteri"]
["C54.8","relativ","Bösartige Neubildung: Corpus uteri, mehrere Teilbereiche überlappend"]
["C54.9","relativ","Bösartige Neubildung: Corpus uteri, nicht näher bezeichnet"]
["C55","relativ","Bösartige Neubildung des Uterus, Teil nicht näher bezeichnet"]
["C56","relativ","Bösartige Neubildung des Ovars"]
["C57","relativ","Bösartige Neubildung sonstiger und nicht näher bezeichneter weiblicher Genitalorgane"]
["C57.0","relativ","Bösartige Neubildung: Tuba uterina [Falloppio]"]
["C57.1","relativ","Bösartige Neubildung: Lig. latum uteri"]
["C57.2","relativ","Bösartige Neubildung: Lig. teres uteri"]
["C57.3","relativ","Bösartige Neubildung: Parametrium"]
["C57.4","relativ","Bösartige Neubildung: Uterine Adnexe, nicht näher bezeichnet"]
["C57.7","relativ","Bösartige Neubildung: Sonstige näher bezeichnete weibliche Genitalorgane"]
["C57.8","relativ","Bösartige Neubildung: Weibliche Genitalorgane, mehrere Teilbereiche überlappend"]
["C57.9","relativ","Bösartige Neubildung: Weibliches Genitalorgan, nicht näher bezeichnet"]
["C58","relativ","Bösartige Neubildung der Plazenta"]
["C60","relativ","Bösartige Neubildung des Penis"]
["C60.0","relativ","Bösartige Neubildung: Praeputium penis"]
["C60.1","relativ","Bösartige Neubildung: Glans penis"]
["C60.2","relativ","Bösartige Neubildung: Penisschaft"]
["C60.8","relativ","Bösartige Neubildung: Penis, mehrere Teilbereiche überlappend"]
["C60.9","relativ","Bösartige Neubildung: Penis, nicht näher bezeichnet"]
["C61","relativ","Bösartige Neubildung der Prostata"]
["C62","relativ","Bösartige Neubildung des Hodens"]
["C62.0","relativ","Bösartige Neubildung: Dystoper Hoden"]
["C62.1","relativ","Bösartige Neubildung: Deszendierter Hoden"]
["C62.9","relativ","Bösartige Neubildung: Hoden, nicht näher bezeichnet"]
["C63","relativ","Bösartige Neubildung sonstiger und nicht näher bezeichneter männlicher Genitalorgane"]
["C63.0","relativ","Bösartige Neubildung: Nebenhoden [Epididymis]"]
["C63.1","relativ","Bösartige Neubildung: Samenstrang"]
["C63.2","relativ","Bösartige Neubildung: Skrotum"]
["C63.7","relativ","Bösartige Neubildung: Sonstige näher bezeichnete männliche Genitalorgane"]
["C63.8","relativ","Bösartige Neubildung: Männliche Genitalorgane, mehrere Teilbereiche überlappend"]
["C63.9","relativ","Bösartige Neubildung: Männliches Genitalorgan, nicht näher bezeichnet"]
["C64","relativ","Bösartige Neubildung der Niere, ausgenommen Nierenbecken"]
["C65","relativ","Bösartige Neubildung des Nierenbeckens"]
["C66","relativ","Bösartige Neubildung des Ureters"]
["C67","relativ","Bösartige Neubildung der Harnblase"]
["C67.0","relativ","Bösartige Neubildung: Trigonum vesicae"]
["C67.1","relativ","Bösartige Neubildung: Apex vesicae"]
["C67.2","relativ","Bösartige Neubildung: Laterale Harnblasenwand"]
["C67.3","relativ","Bösartige Neubildung: Vordere Harnblasenwand"]
["C67.4","relativ","Bösartige Neubildung: Hintere Harnblasenwand"]
["C67.5","relativ","Bösartige Neubildung: Harnblasenhals"]
["C67.6","relativ","Bösartige Neubildung: Ostium ureteris"]
["C67.7","relativ","Bösartige Neubildung: Urachus"]
["C67.8","relativ","Bösartige Neubildung: Harnblase, mehrere Teilbereiche überlappend"]
["C67.9","relativ","Bösartige Neubildung: Harnblase, nicht näher bezeichnet"]
["C68","relativ","Bösartige Neubildung sonstiger und nicht näher bezeichneter Harnorgane"]
["C68.0","relativ","Bösartige Neubildung: Urethra"]
["C68.1","relativ","Bösartige Neubildung: Paraurethrale Drüse"]
["C68.8","relativ","Bösartige Neubildung: Harnorgane, mehrere Teilbereiche überlappend"]
["C68.9","relativ","Bösartige Neubildung: Harnorgan, nicht näher bezeichnet"]
["C69","relativ","Bösartige Neubildung des Auges und der Augenanhangsgebilde"]
["C69.0","relativ","Bösartige Neubildung: Konjunktiva"]
["C69.1","relativ","Bösartige Neubildung: Kornea"]
["C69.2","relativ","Bösartige Neubildung: Retina"]
["C69.3","relativ","Bösartige Neubildung: Chorioidea"]
["C69.4","relativ","Bösartige Neubildung: Ziliarkörper"]
["C69.5","relativ","Bösartige Neubildung: Tränendrüse und Tränenwege"]
["C69.6","relativ","Bösartige Neubildung: Orbita"]
["C69.8","relativ","Bösartige Neubildung: Auge und Augenanhangsgebilde, mehrere Teilbereiche überlappend"]
["C69.9","relativ","Bösartige Neubildung: Auge, nicht näher bezeichnet"]
["C70","relativ","Bösartige Neubildung der Meningen"]
["C70.0","relativ","Bösartige Neubildung: Hirnhäute"]
["C70.1","relativ","Bösartige Neubildung: Rückenmarkhäute"]
["C70.9","relativ","Bösartige Neubildung: Meningen, nicht näher bezeichnet"]
["C71","relativ","Bösartige Neubildung des Gehirns"]
["C71.0","relativ","Bösartige Neubildung: Zerebrum, ausgenommen Hirnlappen und Ventrikel"]
["C71.1","relativ","Bösartige Neubildung: Frontallappen"]
["C71.2","relativ","Bösartige Neubildung: Temporallappen"]
["C71.3","relativ","Bösartige Neubildung: Parietallappen"]
["C71.4","relativ","Bösartige Neubildung: Okzipitallappen"]
["C71.5","relativ","Bösartige Neubildung: Hirnventrikel"]
["C71.6","relativ","Bösartige Neubildung: Zerebellum"]
["C71.7","relativ","Bösartige Neubildung: Hirnstamm"]
["C71.8","relativ","Bösartige Neubildung: Gehirn, mehrere Teilbereiche überlappend"]
["C71.9","relativ","Bösartige Neubildung: Gehirn, nicht näher bezeichnet"]
["C72","relativ","Bösartige Neubildung des Rückenmarkes, der Hirnnerven und anderer Teile des Zentralnervensystems"]
["C72.0","relativ","Bösartige Neubildung: Rückenmark"]
["C72.1","relativ","Bösartige Neubildung: Cauda equina"]
["C72.2","relativ","Bösartige Neubildung: Nn. olfactorii [I. Hirnnerv]"]
["C72.3","relativ","Bösartige Neubildung: N. opticus [II. Hirnnerv]"]
["C72.4","relativ","Bösartige Neubildung: N. vestibulocochlearis [VIII. Hirnnerv]"]
["C72.5","relativ","Bösartige Neubildung: Sonstige und nicht näher bezeichnete Hirnnerven"]
["C72.8","relativ","Bösartige Neubildung: Gehirn und andere Teile des Zentralnervensystems, mehrere Teilbereiche überlappend"]
["C72.9","relativ","Bösartige Neubildung: Zentralnervensystem, nicht näher bezeichnet"]
["C73","relativ","Bösartige Neubildung der Schilddrüse"]
["C74","relativ","Bösartige Neubildung der Nebenniere"]
["C74.0","relativ","Bösartige Neubildung: Nebennierenrinde"]
["C74.1","relativ","Bösartige Neubildung: Nebennierenmark"]
["C74.9","relativ","Bösartige Neubildung: Nebenniere, nicht näher bezeichnet"]
["C75","relativ","Bösartige Neubildung sonstiger endokriner Drüsen und verwandter Strukturen"]
["C75.0","relativ","Bösartige Neubildung: Nebenschilddrüse"]
["C75.1","relativ","Bösartige Neubildung: Hypophyse"]
["C75.2","relativ","Bösartige Neubildung: Ductus craniopharyngealis"]
["C75.3","relativ","Bösartige Neubildung: Epiphyse [Glandula pinealis] [Zirbeldrüse]"]
["C75.4","relativ","Bösartige Neubildung: Glomus caroticum"]
["C75.5","relativ","Bösartige Neubildung: Glomus aorticum und sonstige Paraganglien"]
["C75.8","relativ","Bösartige Neubildung: Beteiligung mehrerer endokriner Drüsen, nicht näher bezeichnet"]
["C75.9","relativ","Bösartige Neubildung: Endokrine Drüse, nicht näher bezeichnet"]
["C76","relativ","Bösartige Neubildung sonstiger und ungenau bezeichneter Lokalisationen"]
["C76.0","relativ","Bösartige Neubildung ungenau bezeichneter Lokalisationen: Kopf, Gesicht und Hals"]
["C76.1","relativ","Bösartige Neubildung ungenau bezeichneter Lokalisationen: Thorax"]
["C76.2","relativ","Bösartige Neubildung ungenau bezeichneter Lokalisationen: Abdomen"]
["C76.3","relativ","Bösartige Neubildung ungenau bezeichneter Lokalisationen: Becken"]
["C76.4","relativ","Bösartige Neubildung ungenau bezeichneter Lokalisationen: Obere Extremität"]
["C76.5","relativ","Bösartige Neubildung ungenau bezeichneter Lokalisationen: Untere Extremität"]
["C76.7","relativ","Bösartige Neubildung: Sonstige ungenau bezeichnete Lokalisationen"]
["C76.8","relativ","Bösartige Neubildung: Sonstige und ungenau bezeichnete Lokalisationen, mehrere Teilbereiche überlappend"]
["C77","absolut","Sekundäre und nicht näher bezeichnete bösartige Neubildung der Lymphknoten"]
["C77.0","absolut","Sekundäre und nicht näher bezeichnete bösartige Neubildung: Lymphknoten des Kopfes, des Gesichtes und des Halses"]
["C77.1","absolut","Sekundäre und nicht näher bezeichnete bösartige Neubildung: Intrathorakale Lymphknoten"]
["C77.2","absolut","Sekundäre und nicht näher bezeichnete bösartige Neubildung: Intraabdominale Lymphknoten"]
["C77.3","absolut","Sekundäre und nicht näher bezeichnete bösartige Neubildung: Axilläre Lymphknoten und Lymphknoten der oberen Extremität"]
["C77.4","absolut","Sekundäre und nicht näher bezeichnete bösartige Neubildung: Inguinale Lymphknoten und Lymphknoten der unteren Extremität"]
["C77.5","absolut","Sekundäre und nicht näher bezeichnete bösartige Neubildung: Intrapelvine Lymphknoten"]
["C77.8","absolut","Sekundäre und nicht näher bezeichnete bösartige Neubildung: Lymphknoten mehrerer Regionen"]
["C77.9","absolut","Sekundäre und nicht näher bezeichnete bösartige Neubildung: Lymphknoten, nicht näher bezeichnet"]
["C78","absolut","Sekundäre bösartige Neubildung der Atmungs- und Verdauungsorgane"]
["C78.0","absolut","Sekundäre bösartige Neubildung der Lunge"]
["C78.1","absolut","Sekundäre bösartige Neubildung des Mediastinums"]
["C78.2","absolut","Sekundäre bösartige Neubildung der Pleura"]
["C78.3","absolut","Sekundäre bösartige Neubildung sonstiger und nicht näher bezeichneter Atmungsorgane"]
["C78.4","absolut","Sekundäre bösartige Neubildung des Dünndarmes"]
["C78.5","absolut","Sekundäre bösartige Neubildung des Dickdarmes und des Rektums"]
["C78.6","absolut","Sekundäre bösartige Neubildung des Retroperitoneums und des Peritoneums"]
["C78.7","absolut","Sekundäre bösartige Neubildung der Leber und der intrahepatischen Gallengänge"]
["C78.8","absolut","Sekundäre bösartige Neubildung sonstiger und nicht näher bezeichneter Verdauungsorgane"]
["C79","absolut","Sekundäre bösartige Neubildung an sonstigen und nicht näher bezeichneten Lokalisationen"]
["C79.0","absolut","Sekundäre bösartige Neubildung der Niere und des Nierenbeckens"]
["C79.1","absolut","Sekundäre bösartige Neubildung der Harnblase sowie sonstiger und nicht näher bezeichneter Harnorgane"]
["C79.2","absolut","Sekundäre bösartige Neubildung der Haut"]
["C79.3","absolut","Sekundäre bösartige Neubildung des Gehirns und der Hirnhäute"]
["C79.4","absolut","Sekundäre bösartige Neubildung sonstiger und nicht näher bezeichneter Teile des Nervensystems"]
["C79.5","absolut","Sekundäre bösartige Neubildung des Knochens und des Knochenmarkes"]
["C79.6","absolut","Sekundäre bösartige Neubildung des Ovars"]
["C79.7","absolut","Sekundäre bösartige Neubildung der Nebenniere"]
["C79.8","absolut","Sekundäre bösartige Neubildung sonstiger näher bezeichneter Lokalisationen"]
["C79.81","absolut","Sekundäre bösartige Neubildung der Brustdrüse"]
["C79.82","absolut","Sekundäre bösartige Neubildung der Genitalorgane"]
["C79.83","absolut","Sekundäre bösartige Neubildung des Perikards"]
["C79.84","absolut","Sonstige sekundäre bösartige Neubildung des Herzens"]
["C79.85","absolut","Sekundäre bösartige Neubildung des Bindegewebes und anderer Weichteilgewebe des Halses"]
["C79.86","absolut","Sekundäre bösartige Neubildung des Bindegewebes und anderer Weichteilgewebe der Extremitäten"]
["C79.88","absolut","Sekundäre bösartige Neubildung sonstiger näher bezeichneter Lokalisationen"]
["C79.9","absolut","Sekundäre bösartige Neubildung nicht näher bezeichneter Lokalisation"]
["C80","absolut","Bösartige Neubildung ohne Angabe der Lokalisation"]
["C80.0","absolut","Bösartige Neubildung, primäre Lokalisation unbekannt, so bezeichnet"]
["C80.9","absolut","Bösartige Neubildung, nicht näher bezeichnet"]
["C81","absolut","Hodgkin-Lymphom [Lymphogranulomatose]"]
["C81.0","absolut","Noduläres lymphozytenprädominantes Hodgkin-Lymphom"]
["C81.1","absolut","Nodulär-sklerosierendes (klassisches) Hodgkin-Lymphom"]
["C81.2","absolut","Gemischtzelliges (klassisches) Hodgkin-Lymphom"]
["C81.3","absolut","Lymphozytenarmes (klassisches) Hodgkin-Lymphom"]
["C81.4","absolut","Lymphozytenreiches (klassisches) Hodgkin-Lymphom"]
["C81.7","absolut","Sonstige Typen des (klassischen) Hodgkin-Lymphoms"]
["C81.9","absolut","Hodgkin-Lymphom, nicht näher bezeichnet"]
["C82","absolut","Follikuläres Lymphom"]
["C82.0","absolut","Follikuläres Lymphom Grad I"]
["C82.1","absolut","Follikuläres Lymphom Grad II"]
["C82.2","absolut","Follikuläres Lymphom Grad III, nicht näher bezeichnet"]
["C82.3","absolut","Follikuläres Lymphom Grad IIIa"]
["C82.4","absolut","Follikuläres Lymphom Grad IIIb"]
["C82.5","absolut","Diffuses Follikelzentrumslymphom"]
["C82.6","absolut","Kutanes Follikelzentrumslymphom"]
["C82.7","absolut","Sonstige Typen des follikulären Lymphoms"]
["C82.9","absolut","Follikuläres Lymphom, nicht näher bezeichnet"]
["C83","absolut","Nicht follikuläres Lymphom"]
["C83.0","absolut","Kleinzelliges B-Zell-Lymphom"]
["C83.1","absolut","Mantelzell-Lymphom"]
["C83.3","absolut","Diffuses großzelliges B-Zell-Lymphom"]
["C83.5","absolut","Lymphoblastisches Lymphom"]
["C83.7","absolut","Burkitt-Lymphom"]
["C83.8","absolut","Sonstige nicht follikuläre Lymphome"]
["C83.9","absolut","Nicht follikuläres Lymphom, nicht näher bezeichnet"]
["C84","absolut","Reifzellige T/NK-Zell-Lymphome"]
["C84.0","absolut","Mycosis fungoides"]
["C84.1","absolut","Sézary-Syndrom"]
["C84.4","absolut","Peripheres T-Zell-Lymphom, nicht spezifiziert"]
["C84.5","absolut","Sonstige reifzellige T/NK-Zell-Lymphome"]
["C84.6","absolut","Anaplastisches großzelliges Lymphom, ALK-positiv"]
["C84.7","absolut","Anaplastisches großzelliges Lymphom, ALK-negativ"]
["C84.8","absolut","Kutanes T-Zell-Lymphom, nicht näher bezeichnet"]
["C84.9","absolut","Reifzelliges T/NK-Zell-Lymphom, nicht näher bezeichnet"]
["C85","absolut","Sonstige und nicht näher bezeichnete Typen des Non-Hodgkin-Lymphoms"]
["C85.1","absolut","B-Zell-Lymphom, nicht näher bezeichnet"]
["C85.2","absolut","Mediastinales (thymisches) großzelliges B-Zell-Lymphom"]
["C85.7","absolut","Sonstige näher bezeichnete Typen des Non-Hodgkin-Lymphoms"]
["C85.9","absolut","Non-Hodgkin-Lymphom, nicht näher bezeichnet"]
["C86","absolut","Weitere spezifizierte T/NK-Zell-Lymphome"]
["C86.0","absolut","Extranodales NK/T-Zell-Lymphom, nasaler Typ"]
["C86.1","absolut","Hepatosplenisches T-Zell-Lymphom"]
["C86.2","absolut","T-Zell-Lymphom vom Enteropathie-Typ"]
["C86.3","absolut","Subkutanes pannikulitisches T-Zell-Lymphom"]
["C86.4","absolut","Blastisches NK-Zell-Lymphom"]
["C86.5","absolut","Angioimmunoblastisches T-Zell-Lymphom"]
["C86.6","absolut","Primäre kutane CD30-positive T-Zell-Proliferationen"]
["C88","absolut","Bösartige immunproliferative Krankheiten"]
["C88.0","absolut","Makroglobulinämie Waldenström"]
["C88.00","absolut","Makroglobulinämie Waldenström: Ohne Angabe einer kompletten Remission"]
["C88.01","relativ","Makroglobulinämie Waldenström: In kompletter Remission"]
["C88.2","absolut","Sonstige Schwerkettenkrankheit"]
["C88.20","absolut","Sonstige Schwerkettenkrankheit: Ohne Angabe einer kompletten Remission"]
["C88.21","relativ","Sonstige Schwerkettenkrankheit: In kompletter Remission"]
["C88.3","absolut","Immunproliferative Dünndarmkrankheit"]
["C88.30","absolut","Immunproliferative Dünndarmkrankheit: Ohne Angabe einer kompletten Remission"]
["C88.31","relativ","Immunproliferative Dünndarmkrankheit: In kompletter Remission"]
["C88.4","absolut","Extranodales Marginalzonen-B-Zell-Lymphom des Mukosa-assoziierten lymphatischen Gewebes [MALT-Lymphom]"]
["C88.40","absolut","Extranodales Marginalzonen-B-Zell-Lymphom des Mukosa-assoziierten lymphatischen Gewebes [MALT-Lymphom]: Ohne Angabe einer kompletten Remission"]
["C88.41","relativ","Extranodales Marginalzonen-B-Zell-Lymphom des Mukosa-assoziierten lymphatischen Gewebes [MALT-Lymphom]: In kompletter Remission"]
["C88.7","absolut","Sonstige bösartige immunproliferative Krankheiten"]
["C88.70","absolut","Sonstige bösartige immunproliferative Krankheiten: Ohne Angabe einer kompletten Remission"]
["C88.71","relativ","Sonstige bösartige immunproliferative Krankheiten: In kompletter Remission"]
["C88.9","absolut","Bösartige immunproliferative Krankheit, nicht näher bezeichnet"]
["C88.90","absolut","Bösartige immunproliferative Krankheit, nicht näher bezeichnet: Ohne Angabe einer kompletten Remission"]
["C88.91","relativ","Bösartige immunproliferative Krankheit, nicht näher bezeichnet: In kompletter Remission"]
["C90","absolut","Plasmozytom und bösartige Plasmazellen-Neubildungen"]
["C90.0","absolut","Multiples Myelom"]
["C90.00","absolut","Multiples Myelom: Ohne Angabe einer kompletten Remission"]
["C90.01","relativ","Multiples Myelom: In kompletter Remission"]
["C90.1","absolut","Plasmazellenleukämie"]
["C90.10","absolut","Plasmazellenleukämie: Ohne Angabe einer kompletten Remission"]
["C90.11","relativ","Plasmazellenleukämie: In kompletter Remission"]
["C90.2","absolut","Extramedulläres Plasmozytom"]
["C90.20","absolut","Extramedulläres Plasmozytom: Ohne Angabe einer kompletten Remission"]
["C90.21","relativ","Extramedulläres Plasmozytom: In kompletter Remission"]
["C90.3","absolut","Solitäres Plasmozytom"]
["C90.30","absolut","Solitäres Plasmozytom: Ohne Angabe einer kompletten Remission"]
["C90.31","relativ","Solitäres Plasmozytom: In kompletter Remission"]
["C91","absolut","Lymphatische Leukämie"]
["C91.0","absolut","Akute lymphatische Leukämie [ALL]"]
["C91.00","absolut","Akute lymphatische Leukämie [ALL]: Ohne Angabe einer kompletten Remission"]
["C91.01","relativ","Akute lymphatische Leukämie [ALL]: In kompletter Remission"]
["C91.1","absolut","Chronische lymphatische Leukämie vom B-Zell-Typ [CLL]"]
["C91.10","absolut","Chronische lymphatische Leukämie vom B-Zell-Typ [CLL]: Ohne Angabe einer kompletten Remission"]
["C91.11","relativ","Chronische lymphatische Leukämie vom B-Zell-Typ [CLL]: In kompletter Remission"]
["C91.3","absolut","Prolymphozytäre Leukämie vom B-Zell-Typ"]
["C91.30","absolut","Prolymphozytäre Leukämie vom B-Zell-Typ: Ohne Angabe einer kompletten Remission"]
["C91.31","relativ","Prolymphozytäre Leukämie vom B-Zell-Typ: In kompletter Remission"]
["C91.4","absolut","Haarzellenleukämie"]
["C91.40","absolut","Haarzellenleukämie: Ohne Angabe einer kompletten Remission"]
["C91.41","relativ","Haarzellenleukämie: In kompletter Remission"]
["C91.5","absolut","Adulte(s) T-Zell-Lymphom/Leukämie (HTLV-1-assoziiert)"]
["C91.50","absolut","Adulte(s) T-Zell-Lymphom/Leukämie (HTLV-1-assoziiert): Ohne Angabe einer kompletten Remission"]
["C91.51","absolut","Adulte(s) T-Zell-Lymphom/Leukämie (HTLV-1-assoziiert): In kompletter Remission"]
["C91.6","absolut","Prolymphozyten-Leukämie vom T-Zell-Typ"]
["C91.60","absolut","Prolymphozyten-Leukämie vom T-Zell-Typ: Ohne Angabe einer kompletten Remission"]
["C91.61","relativ","Prolymphozyten-Leukämie vom T-Zell-Typ: In kompletter Remission"]
["C91.7","absolut","Sonstige lymphatische Leukämie"]
["C91.70","absolut","Sonstige lymphatische Leukämie: Ohne Angabe einer kompletten Remission"]
["C91.71","relativ","Sonstige lymphatische Leukämie: In kompletter Remission"]
["C91.8","absolut","Reifzellige B-ALL vom Burkitt-Typ"]
["C91.80","absolut","Reifzellige B-ALL vom Burkitt-Typ: Ohne Angabe einer kompletten Remission"]
["C91.81","relativ","Reifzellige B-ALL vom Burkitt-Typ: In kompletter Remission"]
["C91.9","absolut","Lymphatische Leukämie, nicht näher bezeichnet"]
["C91.90","absolut","Lymphatische Leukämie, nicht näher bezeichnet: Ohne Angabe einer kompletten Remission"]
["C91.91","relativ","Lymphatische Leukämie, nicht näher bezeichnet: In kompletter Remission"]
["C92","absolut","Myeloische Leukämie"]
["C92.0","absolut","Akute myeloblastische Leukämie [AML]"]
["C92.00","absolut","Akute myeloblastische Leukämie [AML]: Ohne Angabe einer kompletten Remission"]
["C92.01","relativ","Akute myeloblastische Leukämie [AML]: In kompletter Remission"]
["C92.1","absolut","Chronische myeloische Leukämie [CML], BCR/ABL-positiv"]
["C92.10","absolut","Chronische myeloische Leukämie [CML], BCR/ABL-positiv: Ohne Angabe einer kompletten Remission"]
["C92.11","relativ","Chronische myeloische Leukämie [CML], BCR/ABL-positiv: In kompletter Remission"]
["C92.2","absolut","Atypische chronische myeloische Leukämie, BCR/ABL-negativ"]
["C92.20","absolut","Atypische chronische myeloische Leukämie, BCR/ABL-negativ: Ohne Angabe einer kompletten Remission"]
["C92.21","relativ","Atypische chronische myeloische Leukämie, BCR/ABL-negativ: In kompletter Remission"]
["C92.3","absolut","Myelosarkom"]
["C92.30","absolut","Myelosarkom: Ohne Angabe einer kompletten Remission"]
["C92.31","relativ","Myelosarkom: In kompletter Remission"]
["C92.4","absolut","Akute Promyelozyten-Leukämie [PCL]"]
["C92.40","absolut","Akute Promyelozyten-Leukämie [PCL]: Ohne Angabe einer kompletten Remission"]
["C92.41","relativ","Akute Promyelozyten-Leukämie [PCL]: In kompletter Remission"]
["C92.5","absolut","Akute myelomonozytäre Leukämie"]
["C92.50","absolut","Akute myelomonozytäre Leukämie: Ohne Angabe einer kompletten Remission"]
["C92.51","relativ","Akute myelomonozytäre Leukämie: In kompletter Remission"]
["C92.6","absolut","Akute myeloische Leukämie mit 11q23-Abnormität"]
["C92.60","absolut","Akute myeloische Leukämie mit 11q23-Abnormität: Ohne Angabe einer kompletten Remission"]
["C92.61","relativ","Akute myeloische Leukämie mit 11q23-Abnormität: In kompletter Remission"]
["C92.7","absolut","Sonstige myeloische Leukämie"]
["C92.70","absolut","Sonstige myeloische Leukämie: Ohne Angabe einer kompletten Remission"]
["C92.71","relativ","Sonstige myeloische Leukämie: In kompletter Remission"]
["C92.8","absolut","Akute myeloische Leukämie mit multilineärer Dysplasie"]
["C92.80","absolut","Akute myeloische Leukämie mit multilineärer Dysplasie: Ohne Angabe einer kompletten Remission"]
["C92.81","relativ","Akute myeloische Leukämie mit multilineärer Dysplasie: In kompletter Remission"]
["C92.9","absolut","Myeloische Leukämie, nicht näher bezeichnet"]
["C92.90","absolut","Myeloische Leukämie, nicht näher bezeichnet: Ohne Angabe einer kompletten Remission"]
["C92.91","relativ","Myeloische Leukämie, nicht näher bezeichnet: In kompletter Remission"]
["C93","absolut","Monozytenleukämie"]
["C93.0","absolut","Akute Monoblasten-/Monozytenleukämie"]
["C93.00","absolut","Akute Monoblasten-/Monozytenleukämie: Ohne Angabe einer kompletten Remission"]
["C93.01","relativ","Akute Monoblasten-/Monozytenleukämie: In kompletter Remission"]
["C93.1","absolut","Chronische myelomonozytäre Leukämie"]
["C93.10","absolut","Chronische myelomonozytäre Leukämie: Ohne Angabe einer kompletten Remission"]
["C93.11","relativ","Chronische myelomonozytäre Leukämie: In kompletter Remission"]
["C93.3","absolut","Juvenile myelomonozytäre Leukämie"]
["C93.30","absolut","Juvenile myelomonozytäre Leukämie: Ohne Angabe einer kompletten Remission"]
["C93.31","relativ","Juvenile myelomonozytäre Leukämie: In kompletter Remission"]
["C93.7","absolut","Sonstige Monozytenleukämie"]
["C93.70","absolut","Sonstige Monozytenleukämie: Ohne Angabe einer kompletten Remission"]
["C93.71","relativ","Sonstige Monozytenleukämie: In kompletter Remission"]
["C93.9","absolut","Monozytenleukämie, nicht näher bezeichnet"]
["C93.90","absolut","Monozytenleukämie, nicht näher bezeichnet: Ohne Angabe einer kompletten Remission"]
["C93.91","relativ","Monozytenleukämie, nicht näher bezeichnet: In kompletter Remission"]
["C94","absolut","Sonstige Leukämien näher bezeichneten Zelltyps"]
["C94.0","absolut","Akute Erythroleukämie"]
["C94.00","absolut","Akute Erythroleukämie: Ohne Angabe einer kompletten Remission"]
["C94.01","relativ","Akute Erythroleukämie: In kompletter Remission"]
["C94.2","absolut","Akute Megakaryoblastenleukämie"]
["C94.20","absolut","Akute Megakaryoblastenleukämie: Ohne Angabe einer kompletten Remission"]
["C94.21","relativ","Akute Megakaryoblastenleukämie: In kompletter Remission"]
["C94.3","absolut","Mastzellenleukämie"]
["C94.30","absolut","Mastzellenleukämie: Ohne Angabe einer kompletten Remission"]
["C94.31","relativ","Mastzellenleukämie: In kompletter Remission"]
["C94.4","absolut","Akute Panmyelose mit Myelofibrose"]
["C94.40","absolut","Akute Panmyelose mit Myelofibrose: Ohne Angabe einer kompletten Remission"]
["C94.41","relativ","Akute Panmyelose mit Myelofibrose: In kompletter Remission"]
["C94.6","absolut","Myelodysplastische und myeloproliferative Krankheit, nicht klassifizierbar"]
["C94.60","absolut","Myelodysplastische und myeloproliferative Krankheit, nicht klassifizierbar: Ohne Angabe einer kompletten Remission"]
["C94.61","relativ","Myelodysplastische und myeloproliferative Krankheit, nicht klassifizierbar: In kompletter Remission"]
["C94.7","absolut","Sonstige näher bezeichnete Leukämien"]
["C94.70","absolut","Sonstige näher bezeichnete Leukämien: Ohne Angabe einer kompletten Remission"]
["C94.71","relativ","Sonstige näher bezeichnete Leukämien: In kompletter Remission"]
["C94.8","absolut","Blastenkrise bei chronischer myeloischer Leukämie [CML]"]
["C94.8!","absolut","Blastenkrise bei chronischer myeloischer Leukämie [CML]"]
["C95","absolut","Leukämie nicht näher bezeichneten Zelltyps"]
["C95.0","absolut","Akute Leukämie nicht näher bezeichneten Zelltyps"]
["C95.00","absolut","Akute Leukämie nicht näher bezeichneten Zelltyps: Ohne Angabe einer kompletten Remission"]
["C95.01","relativ","Akute Leukämie nicht näher bezeichneten Zelltyps: In kompletter Remission"]
["C95.1","absolut","Chronische Leukämie nicht näher bezeichneten Zelltyps"]
["C95.10","absolut","Chronische Leukämie nicht näher bezeichneten Zelltyps: Ohne Angabe einer kompletten Remission"]
["C95.11","relativ","Chronische Leukämie nicht näher bezeichneten Zelltyps: In kompletter Remission"]
["C95.7","absolut","Sonstige Leukämie nicht näher bezeichneten Zelltyps"]
["C95.70","absolut","Sonstige Leukämie nicht näher bezeichneten Zelltyps: Ohne Angabe einer kompletten Remission"]
["C95.71","relativ","Sonstige Leukämie nicht näher bezeichneten Zelltyps: In kompletter Remission"]
["C95.8","absolut","Leukämie, refraktär auf Standard-Induktionstherapie"]
["C95.8!","absolut","Leukämie, refraktär auf Standard-Induktionstherapie"]
["C95.9","absolut","Leukämie, nicht näher bezeichnet"]
["C95.90","absolut","Leukämie, nicht näher bezeichnet: Ohne Angabe einer kompletten Remission"]
["C95.91","relativ","Leukämie, nicht näher bezeichnet: In kompletter Remission"]
["C96","absolut","Sonstige und nicht näher bezeichnete bösartige Neubildungen des lymphatischen, blutbildenden und verwandten Gewebes"]
["C96.0","absolut","Multifokale und multisystemische (disseminierte) Langerhans-Zell-Histiozytose [Abt-Letterer-Siwe-Krankheit]"]
["C96.2","absolut","Bösartiger Mastzelltumor"]
["C96.4","absolut","Sarkom der dendritischen Zellen (akzessorische Zellen)"]
["C96.5","absolut","Multifokale und unisystemische Langerhans-Zell-Histiozytose"]
["C96.6","absolut","Unifokale Langerhans-Zell-Histiozytose"]
["C96.7","absolut","Sonstige näher bezeichnete bösartige Neubildungen des lymphatischen, blutbildenden und verwandten Gewebes"]
["C96.8","absolut","Histiozytisches Sarkom"]
["C96.9","absolut","Bösartige Neubildung des lymphatischen, blutbildenden und verwandten Gewebes, nicht näher bezeichnet"]
["C97","absolut","Bösartige Neubildungen als Primärtumoren an mehreren Lokalisationen"]
["C97!","absolut","Bösartige Neubildungen als Primärtumoren an mehreren Lokalisationen"]
["J65","absolut","Pneumokoniose in Verbindung mit Tuberkulose"]
["K23.0","absolut","Tuberkulose des Ösophagus"]
["K23.0*","absolut","Tuberkulose des Ösophagus"]
["K93.0","absolut","Tuberkulose des Darmes, des Peritoneums und der Mesenteriallymphknoten"]
["K93.0*","absolut","Tuberkulose des Darmes, des Peritoneums und der Mesenteriallymphknoten"]
["M49.0","absolut","Tuberkulose der Wirbelsäule"]
["M49.0*","absolut","Tuberkulose der Wirbelsäule"]
["M49.00","absolut","Tuberkulose der Wirbelsäule: Mehrere Lokalisationen der Wirbelsäule"]
["M49.00*","absolut","Tuberkulose der Wirbelsäule: Mehrere Lokalisationen der Wirbelsäule"]
["M49.01","absolut","Tuberkulose der Wirbelsäule: Okzipito-Atlanto-Axialbereich"]
["M49.01*","absolut","Tuberkulose der Wirbelsäule: Okzipito-Atlanto-Axialbereich"]
["M49.02","absolut","Tuberkulose der Wirbelsäule: Zervikalbereich"]
["M49.02*","absolut","Tuberkulose der Wirbelsäule: Zervikalbereich"]
["M49.03","absolut","Tuberkulose der Wirbelsäule: Zervikothorakalbereich"]
["M49.03*","absolut","Tuberkulose der Wirbelsäule: Zervikothorakalbereich"]
["M49.04","absolut","Tuberkulose der Wirbelsäule: Thorakalbereich"]
["M49.04*","absolut","Tuberkulose der Wirbelsäule: Thorakalbereich"]
["M49.05","absolut","Tuberkulose der Wirbelsäule: Thorakolumbalbereich"]
["M49.05*","absolut","Tuberkulose der Wirbelsäule: Thorakolumbalbereich"]
["M49.06","absolut","Tuberkulose der Wirbelsäule: Lumbalbereich"]
["M49.06*","absolut","Tuberkulose der Wirbelsäule: Lumbalbereich"]
["M49.07","absolut","Tuberkulose der Wirbelsäule: Lumbosakralbereich"]
["M49.07*","absolut","Tuberkulose der Wirbelsäule: Lumbosakralbereich"]
["M49.08","absolut","Tuberkulose der Wirbelsäule: Sakral- und Sakrokokzygealbereich"]
["M49.08*","absolut","Tuberkulose der Wirbelsäule: Sakral- und Sakrokokzygealbereich"]
["M49.09","absolut","Tuberkulose der Wirbelsäule: Nicht näher bezeichnete Lokalisation"]
["M49.09*","absolut","Tuberkulose der Wirbelsäule: Nicht näher bezeichnete Lokalisation"]
["M90.0","absolut","Knochentuberkulose"]
["M90.0*","absolut","Knochentuberkulose"]
["M90.00","absolut","Knochentuberkulose: Mehrere Lokalisationen"]
["M90.00*","absolut","Knochentuberkulose: Mehrere Lokalisationen"]
["M90.01","absolut","Knochentuberkulose: Schulterregion [Klavikula, Skapula, Akromioklavikular-, Schulter-, Sternoklavikulargelenk]"]
["M90.01*","absolut","Knochentuberkulose: Schulterregion [Klavikula, Skapula, Akromioklavikular-, Schulter-, Sternoklavikulargelenk]"]
["M90.02","absolut","Knochentuberkulose: Oberarm [Humerus, Ellenbogengelenk]"]
["M90.02*","absolut","Knochentuberkulose: Oberarm [Humerus, Ellenbogengelenk]"]
["M90.03","absolut","Knochentuberkulose: Unterarm [Radius, Ulna, Handgelenk]"]
["M90.03*","absolut","Knochentuberkulose: Unterarm [Radius, Ulna, Handgelenk]"]
["M90.04","absolut","Knochentuberkulose: Hand [Finger, Handwurzel, Mittelhand, Gelenke zwischen diesen Knochen]"]
["M90.04*","absolut","Knochentuberkulose: Hand [Finger, Handwurzel, Mittelhand, Gelenke zwischen diesen Knochen]"]
["M90.05","absolut","Knochentuberkulose: Beckenregion und Oberschenkel [Becken, Femur, Gesäß, Hüfte, Hüftgelenk, Iliosakralgelenk]"]
["M90.05*","absolut","Knochentuberkulose: Beckenregion und Oberschenkel [Becken, Femur, Gesäß, Hüfte, Hüftgelenk, Iliosakralgelenk]"]
["M90.06","absolut","Knochentuberkulose: Unterschenkel [Fibula, Tibia, Kniegelenk]"]
["M90.06*","absolut","Knochentuberkulose: Unterschenkel [Fibula, Tibia, Kniegelenk]"]
["M90.07","absolut","Knochentuberkulose: Knöchel und Fuß [Fußwurzel, Mittelfuß, Zehen, Sprunggelenk, sonstige Gelenke des Fußes]"]
["M90.07*","absolut","Knochentuberkulose: Knöchel und Fuß [Fußwurzel, Mittelfuß, Zehen, Sprunggelenk, sonstige Gelenke des Fußes]"]
["M90.08","absolut","Knochentuberkulose: Sonstige [Hals, Kopf, Rippen, Rumpf, Schädel, Wirbelsäule]"]
["M90.08*","absolut","Knochentuberkulose: Sonstige [Hals, Kopf, Rippen, Rumpf, Schädel, Wirbelsäule]"]
["M90.09","absolut","Knochentuberkulose: Nicht näher bezeichnete Lokalisation"]
["M90.09*","absolut","Knochentuberkulose: Nicht näher bezeichnete Lokalisation"]
["O89.0","relativ","Pulmonale Komplikationen bei Anästhesie im Wochenbett"]
["O89.4","relativ","Kopfschmerzen nach Spinal- oder Periduralanästhesie im Wochenbett"]
["P35.1","absolut","Angeborene Zytomegalie"]
["P35.2","absolut","Angeborene Infektion durch Herpesviren [Herpes simplex]"]
["P35.3","absolut","Angeborene Virushepatitis"]
["P35.9","absolut","Angeborene Viruskrankheit, nicht näher bezeichnet"]
["P36","relativ","Bakterielle Sepsis beim Neugeborenen"]
["P36.0","relativ","Sepsis beim Neugeborenen durch Streptokokken, Gruppe B"]
["P36.1","relativ","Sepsis beim Neugeborenen durch sonstige und nicht näher bezeichnete Streptokokken"]
["P36.2","relativ","Sepsis beim Neugeborenen durch Staphylococcus aureus"]
["P36.3","relativ","Sepsis beim Neugeborenen durch sonstige und nicht näher bezeichnete Staphylokokken"]
["P36.4","relativ","Sepsis beim Neugeborenen durch Escherichia coli"]
["P36.5","relativ","Sepsis beim Neugeborenen durch Anaerobier"]
["P36.8","relativ","Sonstige bakterielle Sepsis beim Neugeborenen"]
["P36.9","relativ","Bakterielle Sepsis beim Neugeborenen, nicht näher bezeichnet"]
["P37.0","absolut","Angeborene Tuberkulose"]
["P37.4","absolut","Sonstige angeborene Malaria"]
["R57.2","relativ","Septischer Schock"]
["R75","relativ","Laborhinweis auf Humanes Immundefizienz-Virus [HIV]"]
["U60","absolut","Klinische Kategorien der HIV-Krankheit"]
["U60!","absolut","Klinische Kategorien der HIV-Krankheit"]
["U60.1","absolut","Klinische Kategorien der HIV-Krankheit: Kategorie A"]
["U60.1!","absolut","Klinische Kategorien der HIV-Krankheit: Kategorie A"]
["U60.2","absolut","Klinische Kategorien der HIV-Krankheit: Kategorie B"]
["U60.2!","absolut","Klinische Kategorien der HIV-Krankheit: Kategorie B"]
["U60.3","absolut","Klinische Kategorien der HIV-Krankheit: Kategorie C"]
["U60.3!","absolut","Klinische Kategorien der HIV-Krankheit: Kategorie C"]
["U60.9","absolut","Klinische Kategorie der HIV-Krankheit nicht näher bezeichnet"]
["U60.9!","absolut","Klinische Kategorie der HIV-Krankheit nicht näher bezeichnet"]
["U61","absolut","Anzahl der T-Helferzellen bei HIV-Krankheit"]
["U61!","absolut","Anzahl der T-Helferzellen bei HIV-Krankheit"]
["U61.1","absolut","Anzahl der T-Helferzellen bei HIV-Krankheit: Kategorie 1"]
["U61.1!","absolut","Anzahl der T-Helferzellen bei HIV-Krankheit: Kategorie 1"]
["U61.2","absolut","Anzahl der T-Helferzellen bei HIV-Krankheit: Kategorie 2"]
["U61.2!","absolut","Anzahl der T-Helferzellen bei HIV-Krankheit: Kategorie 2"]
["U61.3","absolut","Anzahl der T-Helferzellen bei HIV-Krankheit: Kategorie 3"]
["U61.3!","absolut","Anzahl der T-Helferzellen bei HIV-Krankheit: Kategorie 3"]
["U61.9","absolut","Anzahl der (CD4+-)T-Helferzellen nicht näher bezeichnet"]
["U61.9!","absolut","Anzahl der (CD4+-)T-Helferzellen nicht näher bezeichnet"]
["U80","relativ","Grampositive Erreger mit bestimmten Antibiotikaresistenzen, die besondere therapeutische oder hygienische Maßnahmen erfordern"]
["U80!","relativ","Grampositive Erreger mit bestimmten Antibiotikaresistenzen, die besondere therapeutische oder hygienische Maßnahmen erfordern"]
["U80.0","relativ","Staphylococcus aureus mit Resistenz gegen Oxacillin, Glykopeptid-Antibiotika, Chinolone, Streptogramine oder Oxazolidinone"]
["U80.0!","relativ","Staphylococcus aureus mit Resistenz gegen Oxacillin, Glykopeptid-Antibiotika, Chinolone, Streptogramine oder Oxazolidinone"]
["U80.00","relativ","Staphylococcus aureus mit Resistenz gegen Oxacillin oder Methicillin [MRSA]"]
["U80.00!","relativ","Staphylococcus aureus mit Resistenz gegen Oxacillin oder Methicillin [MRSA]"]
["U80.01","relativ","Staphylococcus aureus mit Resistenz gegen Glykopeptid-Antibiotika, Chinolone, Streptogramine oder Oxazolidinone und ohne Resistenz gegen Oxacillin oder Methicillin"]
["U80.01!","relativ","Staphylococcus aureus mit Resistenz gegen Glykopeptid-Antibiotika, Chinolone, Streptogramine oder Oxazolidinone und ohne Resistenz gegen Oxacillin oder Methicillin"]
["U80.1","relativ","Streptococcus pneumoniae mit Resistenz gegen Penicillin, Oxacillin, Makrolid-Antibiotika, Oxazolidinone oder Streptogramine"]
["U80.1!","relativ","Streptococcus pneumoniae mit Resistenz gegen Penicillin, Oxacillin, Makrolid-Antibiotika, Oxazolidinone oder Streptogramine"]
["U80.10","relativ","Streptococcus pneumoniae mit Resistenz gegen Penicillin oder Oxacillin"]
["U80.10!","relativ","Streptococcus pneumoniae mit Resistenz gegen Penicillin oder Oxacillin"]
["U80.11","relativ","Streptococcus pneumoniae mit Resistenz gegen Makrolid-Antibiotika, Oxazolidinone oder Streptogramine und ohne Resistenz gegen Penicillin oder Oxacillin"]
["U80.11!","relativ","Streptococcus pneumoniae mit Resistenz gegen Makrolid-Antibiotika, Oxazolidinone oder Streptogramine und ohne Resistenz gegen Penicillin oder Oxacillin"]
["U80.2","relativ","Enterococcus faecalis mit Resistenz gegen Glykopeptid-Antibiotika oder Oxazolidinone oder mit High-Level-Aminoglykosid-Resistenz"]
["U80.2!","relativ","Enterococcus faecalis mit Resistenz gegen Glykopeptid-Antibiotika oder Oxazolidinone oder mit High-Level-Aminoglykosid-Resistenz"]
["U80.20","relativ","Enterococcus faecalis mit Resistenz gegen Glykopeptid-Antibiotika"]
["U80.20!","relativ","Enterococcus faecalis mit Resistenz gegen Glykopeptid-Antibiotika"]
["U80.21","relativ","Enterococcus faecalis mit Resistenz gegen Oxazolidinone oder mit High-Level-Aminoglykosid-Resistenz und ohne Resistenz gegen Glykopeptid-Antibiotika"]
["U80.21!","relativ","Enterococcus faecalis mit Resistenz gegen Oxazolidinone oder mit High-Level-Aminoglykosid-Resistenz und ohne Resistenz gegen Glykopeptid-Antibiotika"]
["U80.3","relativ","Enterococcus faecium mit Resistenz gegen Glykopeptid-Antibiotika, Oxazolidinone oder Streptogramine oder mit High-Level-Aminoglykosid-Resistenz"]
["U80.3!","relativ","Enterococcus faecium mit Resistenz gegen Glykopeptid-Antibiotika, Oxazolidinone oder Streptogramine oder mit High-Level-Aminoglykosid-Resistenz"]
["U80.30","relativ","Enterococcus faecium mit Resistenz gegen Glykopeptid-Antibiotika"]
["U80.30!","relativ","Enterococcus faecium mit Resistenz gegen Glykopeptid-Antibiotika"]
["U80.31","relativ","Enterococcus faecium mit Resistenz gegen Oxazolidinone oder Streptogramine oder mit High-Level-Aminoglykosid-Resistenz und ohne Resistenz gegen Glykopeptid-Antibiotika"]
["U80.31!","relativ","Enterococcus faecium mit Resistenz gegen Oxazolidinone oder Streptogramine oder mit High-Level-Aminoglykosid-Resistenz und ohne Resistenz gegen Glykopeptid-Antibiotika"]
["U80.8","relativ","Sonstige grampositive Bakterien mit Multiresistenz gegen Antibiotika"]
["U80.8!","relativ","Sonstige grampositive Bakterien mit Multiresistenz gegen Antibiotika"]
["U81","relativ","Gramnegative Erreger mit bestimmten Antibiotikaresistenzen, die besondere therapeutische oder hygienische Maßnahmen erfordern"]
["U81!","relativ","Gramnegative Erreger mit bestimmten Antibiotikaresistenzen, die besondere therapeutische oder hygienische Maßnahmen erfordern"]
["U81.0","relativ","Enterobakterien mit Multiresistenz 2MRGN NeoPäd"]
["U81.0!","relativ","Enterobakterien mit Multiresistenz 2MRGN NeoPäd"]
["U81.00","relativ","Escherichia coli mit Multiresistenz 2MRGN NeoPäd"]
["U81.00!","relativ","Escherichia coli mit Multiresistenz 2MRGN NeoPäd"]
["U81.01","relativ","Klebsiella pneumoniae mit Multiresistenz 2MRGN NeoPäd"]
["U81.01!","relativ","Klebsiella pneumoniae mit Multiresistenz 2MRGN NeoPäd"]
["U81.02","relativ","Klebsiella oxytoca mit Multiresistenz 2MRGN NeoPäd"]
["U81.02!","relativ","Klebsiella oxytoca mit Multiresistenz 2MRGN NeoPäd"]
["U81.03","relativ","Sonstige Klebsiellen mit Multiresistenz 2MRGN NeoPäd"]
["U81.03!","relativ","Sonstige Klebsiellen mit Multiresistenz 2MRGN NeoPäd"]
["U81.04","relativ","Enterobacter-cloacae-Komplex mit Multiresistenz 2MRGN NeoPäd"]
["U81.04!","relativ","Enterobacter-cloacae-Komplex mit Multiresistenz 2MRGN NeoPäd"]
["U81.05","relativ","Citrobacter-freundii-Komplex mit Multiresistenz 2MRGN NeoPäd"]
["U81.05!","relativ","Citrobacter-freundii-Komplex mit Multiresistenz 2MRGN NeoPäd"]
["U81.06","relativ","Serratia marcescens mit Multiresistenz 2MRGN NeoPäd"]
["U81.06!","relativ","Serratia marcescens mit Multiresistenz 2MRGN NeoPäd"]
["U81.07","relativ","Proteus mirabilis mit Multiresistenz 2MRGN NeoPäd"]
["U81.07!","relativ","Proteus mirabilis mit Multiresistenz 2MRGN NeoPäd"]
["U81.08","relativ","Sonstige Enterobakterien mit Multiresistenz 2MRGN NeoPäd"]
["U81.08!","relativ","Sonstige Enterobakterien mit Multiresistenz 2MRGN NeoPäd"]
["U81.1","relativ","Pseudomonas und Acinetobacter mit Multiresistenz 2MRGN NeoPäd"]
["U81.1!","relativ","Pseudomonas und Acinetobacter mit Multiresistenz 2MRGN NeoPäd"]
["U81.10","relativ","Pseudomonas aeruginosa mit Multiresistenz 2MRGN NeoPäd"]
["U81.10!","relativ","Pseudomonas aeruginosa mit Multiresistenz 2MRGN NeoPäd"]
["U81.11","relativ","Acinetobacter-baumannii-Gruppe mit Multiresistenz 2MRGN NeoPäd"]
["U81.11!","relativ","Acinetobacter-baumannii-Gruppe mit Multiresistenz 2MRGN NeoPäd"]
["U81.2","relativ","Enterobakterien mit Multiresistenz 3MRGN"]
["U81.2!","relativ","Enterobakterien mit Multiresistenz 3MRGN"]
["U81.20","relativ","Escherichia coli mit Multiresistenz 3MRGN"]
["U81.20!","relativ","Escherichia coli mit Multiresistenz 3MRGN"]
["U81.21","relativ","Klebsiella pneumoniae mit Multiresistenz 3MRGN"]
["U81.21!","relativ","Klebsiella pneumoniae mit Multiresistenz 3MRGN"]
["U81.22","relativ","Klebsiella oxytoca mit Multiresistenz 3MRGN"]
["U81.22!","relativ","Klebsiella oxytoca mit Multiresistenz 3MRGN"]
["U81.23","relativ","Sonstige Klebsiellen mit Multiresistenz 3MRGN"]
["U81.23!","relativ","Sonstige Klebsiellen mit Multiresistenz 3MRGN"]
["U81.24","relativ","Enterobacter-cloacae-Komplex mit Multiresistenz 3MRGN"]
["U81.24!","relativ","Enterobacter-cloacae-Komplex mit Multiresistenz 3MRGN"]
["U81.25","relativ","Citrobacter-freundii-Komplex mit Multiresistenz 3MRGN"]
["U81.25!","relativ","Citrobacter-freundii-Komplex mit Multiresistenz 3MRGN"]
["U81.26","relativ","Serratia marcescens mit Multiresistenz 3MRGN"]
["U81.26!","relativ","Serratia marcescens mit Multiresistenz 3MRGN"]
["U81.27","relativ","Proteus mirabilis mit Multiresistenz 3MRGN"]
["U81.27!","relativ","Proteus mirabilis mit Multiresistenz 3MRGN"]
["U81.28","relativ","Sonstige Enterobakterien mit Multiresistenz 3MRGN"]
["U81.28!","relativ","Sonstige Enterobakterien mit Multiresistenz 3MRGN"]
["U81.3","relativ","Pseudomonas und Acinetobacter mit Multiresistenz 3MRGN"]
["U81.3!","relativ","Pseudomonas und Acinetobacter mit Multiresistenz 3MRGN"]
["U81.30","relativ","Pseudomonas aeruginosa mit Multiresistenz 3MRGN"]
["U81.30!","relativ","Pseudomonas aeruginosa mit Multiresistenz 3MRGN"]
["U81.31","relativ","Acinetobacter-baumannii-Gruppe mit Multiresistenz 3MRGN"]
["U81.31!","relativ","Acinetobacter-baumannii-Gruppe mit Multiresistenz 3MRGN"]
["U81.4","relativ","Enterobakterien mit Multiresistenz 4MRGN"]
["U81.4!","relativ","Enterobakterien mit Multiresistenz 4MRGN"]
["U81.40","relativ","Escherichia coli mit Multiresistenz 4MRGN"]
["U81.40!","relativ","Escherichia coli mit Multiresistenz 4MRGN"]
["U81.41","relativ","Klebsiella pneumoniae mit Multiresistenz 4MRGN"]
["U81.41!","relativ","Klebsiella pneumoniae mit Multiresistenz 4MRGN"]
["U81.42","relativ","Klebsiella oxytoca mit Multiresistenz 4MRGN"]
["U81.42!","relativ","Klebsiella oxytoca mit Multiresistenz 4MRGN"]
["U81.43","relativ","Sonstige Klebsiellen mit Multiresistenz 4MRGN"]
["U81.43!","relativ","Sonstige Klebsiellen mit Multiresistenz 4MRGN"]
["U81.44","relativ","Enterobacter-cloacae-Komplex mit Multiresistenz 4MRGN"]
["U81.44!","relativ","Enterobacter-cloacae-Komplex mit Multiresistenz 4MRGN"]
["U81.45","relativ","Citrobacter-freundii-Komplex mit Multiresistenz 4MRGN"]
["U81.45!","relativ","Citrobacter-freundii-Komplex mit Multiresistenz 4MRGN"]
["U81.46","relativ","Serratia marcescens mit Multiresistenz 4MRGN"]
["U81.46!","relativ","Serratia marcescens mit Multiresistenz 4MRGN"]
["U81.47","relativ","Proteus mirabilis mit Multiresistenz 4MRGN"]
["U81.47!","relativ","Proteus mirabilis mit Multiresistenz 4MRGN"]
["U81.48","relativ","Sonstige Enterobakterien mit Multiresistenz 4MRGN"]
["U81.48!","relativ","Sonstige Enterobakterien mit Multiresistenz 4MRGN"]
["U81.5","relativ","Pseudomonas und Acinetobacter mit Multiresistenz 4MRGN"]
["U81.5!","relativ","Pseudomonas und Acinetobacter mit Multiresistenz 4MRGN"]
["U81.50","relativ","Pseudomonas aeruginosa mit Multiresistenz 4MRGN"]
["U81.50!","relativ","Pseudomonas aeruginosa mit Multiresistenz 4MRGN"]
["U81.51","relativ","Acinetobacter-baumannii-Gruppe mit Multiresistenz 4MRGN"]
["U81.51!","relativ","Acinetobacter-baumannii-Gruppe mit Multiresistenz 4MRGN"]
["U81.6","relativ","Burkholderia, Stenotrophomonas und andere Nonfermenter mit Resistenz gegen Chinolone, Amikacin, Ceftazidim, Piperacillin/Tazobactam oder Cotrimoxazol"]
["U81.6!","relativ","Burkholderia, Stenotrophomonas und andere Nonfermenter mit Resistenz gegen Chinolone, Amikacin, Ceftazidim, Piperacillin/Tazobactam oder Cotrimoxazol"]
["U81.8","relativ","Sonstige gramnegative Bakterien mit Multiresistenz gegen Antibiotika"]
["U81.8!","relativ","Sonstige gramnegative Bakterien mit Multiresistenz gegen Antibiotika"]
["U82","relativ","Mykobakterien mit Resistenz gegen Antituberkulotika (Erstrangmedikamente)"]
["U82!","relativ","Mykobakterien mit Resistenz gegen Antituberkulotika (Erstrangmedikamente)"]
["U82.0","relativ","Mycobacterium tuberculosis mit Resistenz gegen ein oder mehrere Erstrangmedikamente"]
["U82.0!","relativ","Mycobacterium tuberculosis mit Resistenz gegen ein oder mehrere Erstrangmedikamente"]
["U82.1","relativ","Multi-Drug Resistant Tuberculosis [MDR-TB]"]
["U82.1!","relativ","Multi-Drug Resistant Tuberculosis [MDR-TB]"]
["U82.2","relativ","Atypische Mykobakterien oder Nocardia mit Resistenz gegen ein oder mehrere Erstrangmedikamente"]
["U82.2!","relativ","Atypische Mykobakterien oder Nocardia mit Resistenz gegen ein oder mehrere Erstrangmedikamente"]
["U83","relativ","Candida mit Resistenz gegen Fluconazol oder Voriconazol"]
["U83!","relativ","Candida mit Resistenz gegen Fluconazol oder Voriconazol"]
["U84","relativ","Herpesviren mit Resistenz gegen Virustatika"]
["U84!","relativ","Herpesviren mit Resistenz gegen Virustatika"]
["U85","relativ","Humanes Immundefizienz-Virus mit Resistenz gegen Virustatika oder Proteinaseinhibitoren"]
["U85!","relativ","Humanes Immundefizienz-Virus mit Resistenz gegen Virustatika oder Proteinaseinhibitoren"]
["Z03.0","relativ","Beobachtung bei Verdacht auf Tuberkulose"]
["Z03.1","relativ","Beobachtung bei Verdacht auf bösartige Neubildung"]
["Z08","relativ","Nachuntersuchung nach Behandlung wegen bösartiger Neubildung"]
["Z08.0","relativ","Nachuntersuchung nach chirurgischem Eingriff wegen bösartiger Neubildung"]
["Z08.1","relativ","Nachuntersuchung nach Strahlentherapie wegen bösartiger Neubildung"]
["Z08.2","relativ","Nachuntersuchung nach Chemotherapie wegen bösartiger Neubildung"]
["Z08.7","relativ","Nachuntersuchung nach Kombinationstherapie wegen bösartiger Neubildung"]
["Z08.8","relativ","Nachuntersuchung nach sonstiger Behandlung wegen bösartiger Neubildung"]
["Z08.9","relativ","Nachuntersuchung nach nicht näher bezeichneter Behandlung wegen bösartiger Neubildung"]
["Z12","relativ","Spezielle Verfahren zur Untersuchung auf Neubildungen"]
["Z12.0","relativ","Spezielle Verfahren zur Untersuchung auf Neubildung des Magens"]
["Z12.1","relativ","Spezielle Verfahren zur Untersuchung auf Neubildung des Darmtraktes"]
["Z12.2","relativ","Spezielle Verfahren zur Untersuchung auf Neubildung der Atmungsorgane"]
["Z12.3","relativ","Spezielle Verfahren zur Untersuchung auf Neubildung der Mamma [Brustdrüse]"]
["Z12.4","relativ","Spezielle Verfahren zur Untersuchung auf Neubildung der Cervix uteri"]
["Z12.5","relativ","Spezielle Verfahren zur Untersuchung auf Neubildung der Prostata"]
["Z12.6","relativ","Spezielle Verfahren zur Untersuchung auf Neubildung der Harnblase"]
["Z12.8","relativ","Spezielle Verfahren zur Untersuchung auf Neubildungen sonstiger Lokalisationen"]
["Z12.9","relativ","Spezielle Verfahren zur Untersuchung auf Neubildung, nicht näher bezeichnet"]
["Z13.0","relativ","Spezielle Verfahren zur Untersuchung auf Krankheiten des Blutes und der blutbildenden Organe und bestimmte Störungen mit Beteiligung des Immunsystems"]
["Z20.1","relativ","Kontakt mit und Exposition gegenüber Tuberkulose"]
["Z20.3","relativ","Kontakt mit und Exposition gegenüber Tollwut"]
["Z20.5","relativ","Kontakt mit und Exposition gegenüber Virushepatitis"]
["Z20.6","relativ","Kontakt mit und Exposition gegenüber HIV [Humanes Immundefizienz-Virus]"]
["Z21","relativ","Asymptomatische HIV-Infektion [Humane Immundefizienz-Virusinfektion]"]
["Z23.2","relativ","Notwendigkeit der Impfung gegen Tuberkulose [BCG]"]
["Z24.3","relativ","Notwendigkeit der Impfung gegen Gelbfieber"]
["Z24.4","relativ","Notwendigkeit der Impfung gegen Masern, nicht kombiniert"]
["Z24.5","relativ","Notwendigkeit der Impfung gegen Röteln, nicht kombiniert"]
["Z25.0","relativ","Notwendigkeit der Impfung gegen Mumps, nicht kombiniert"]
["Z25.8","relativ","Notwendigkeit der Impfung gegen sonstige näher bezeichnete einzelne Viruskrankheiten"]
["Z27.4","relativ","Notwendigkeit der Impfung gegen Masern-Mumps-Röteln [MMR]"]

{"sheet":"FAB-Liste","index":6,"n_rows":39,"n_cols":2,"rows_kept":39,"cut":false,"hidden":true,"merged":[]}
["FAB","FAB-Bezeichnung"]
["0100","Innere Medizin"]
["0200","Geriatrie"]
["0300","Kardiologie"]
["0400","Nephrologie"]
["0500","Hämatologie und internistische Onkologie"]
["0600","Endokrinologie"]
["0700","Gastroenterologie"]
["0800","Pneumologie"]
["0900","Rheumatologie"]
[1000,"Pädiatrie"]
[1100,"Kinderkardiologie"]
[1200,"Neonatologie"]
[1300,"Kinderchirurgie"]
[1400,"Lungen- und Bronchialheilkunde"]
[1500,"Allgemeine Chirurgie"]
[1600,"Unfallchirurgie"]
[1700,"Neurochirurgie"]
[1800,"Gefäßchirurgie"]
[1900,"Plastische Chirurgie"]
[2000,"Thoraxchirurgie"]
[2100,"Herzchirurgie"]
[2200,"Urologie"]
[2300,"Orthopädie"]
[2400,"Frauenheilkunde und Geburtshilfe"]
[2500,"davon Geburtshilfe"]
[2600,"Hals-, Nasen-, Ohrenheilkunde"]
[2700,"Augenheilkunde"]
[2800,"Neurologie"]
[2900,"Allgemeine Psychiatrie"]
[3000,"Kinder- und Jugendpsychiatrie"]
[3100,"Psychosomatik/Psychotherapie"]
[3200,"Nuklearmedizin"]
[3300,"Strahlenheilkunde"]
[3400,"Dermatologie"]
[3500,"Zahn- und Kieferheilkunde, Mund- und Kieferchirurgie"]
[3600,"Intensivmedizin"]
[3700,"Sonstige Fachabteilung"]
["0000","Pseudo-Fachabteilung"]

{"sheet":"EFA-Codes","index":7,"n_rows":59,"n_cols":2,"rows_kept":59,"cut":false,"hidden":true,"merged":[]}
[]
[]
["Kategorien"]
["Absolute Kontraindikation"]
["0-Beatmungsstunden"]
["Kontaktaufnahme DSO (A2-B2)"]
["Organspender (B3)"]
["Einzelfallanalyse"]
[]
[]
[]
[]
[]
[]
["Keine Einleitung IHA"]
["Antworten","Schlüssel"]
[]
["Widerspruch zur Organspende war bekannt","1KEW"]
["Vorliegen einer medizinischen Kontraindikation zur Organspende","1MKI"]
["Herz-Kreislaufstillstand","1HKS"]
["Keine Hirnstammareflexie / erhaltener Atemantrieb","1KHA"]
["Vorliegen einer Patientenverfügung erlaubte keine Fortsetzung der Therapie","1VPV"]
["Therapielimitierung bei infauster Prognose mit Angehörigen besprochen, ohne Besprechung der Option einer Organspende","1TLO"]
["Einleitung IHA-Diagnostik wäre indiziert gewesen, erfolgte aber nicht","1KID"]
[]
["IHA eingeleitet, aber nicht abgeschlossen"]
["Antworten","Schlüssel"]
[]
["Irreversibler Hirnfunktionsausfall nicht feststellbar","2INF"]
["Widerspruch zur Organspende wurde bekannt","2KEW"]
["Vorliegen einer medizinischen Kontraindikation zur Organspende","2MKI"]
["Herz-Kreislaufstillstand","2HKS"]
[]
["IHA abgeschlossen, aber keine Kontaktaufnahme DSO"]
["Antworten","Schlüssel"]
[]
["Irreversibler Hirnfunktionsausfall sicher ausgeschlossen","3ISA"]
["Keine Einwilligung zur Organspende","3KEW"]
["Vorliegen einer medizinischen Kontraindikation zur Organspende","3MKI"]
["Herz-Kreislaufstillstand","3HKS"]
[]
["Fehlende Einwilligung"]
["Antworten","Schlüssel"]
[]
["Schriftliche Ablehnung der Organspende durch Patientenverfügung","FEA"]
["Schriftliche Ablehnung der Organspende durch Organspendeausweis","FEB"]
["Schriftliche Ablehnung der Organspende durch sonstiges Dokument","FEC"]
["Mündliche Ablehnung der/des Verstorbenen bekannt","FED"]
["Mutmaßlicher Wille der/des Verstorbenen durch Angehörige übermittelt","FEE"]
["Entscheidung der Angehörigen nach eigenen Wertvorstellungen","FEF"]
["Keine entscheidungsberechtigte Person","FEG"]
["Keine Freigabe durch Staatsanwaltschaft","FEH"]
[]
["Beteiligung des TxB"]
["Antworten","Schlüssel"]
[]
["Beteiligung nicht erforderlich / Befundkonstellation nicht relevant für weitere Klärung","BTA"]
["Ja, TxB war beteiligt","BTB"]
["Keine Beteiligung","BTD"]

{"sheet":"DS_Beschreibung","index":8,"n_rows":13,"n_cols":13,"rows_kept":13,"cut":false,"hidden":true,"merged":[]}
[null,null,null,"FAB.csv: Datensatzbeschreibung gem. §21 KHEntgG im Vergleich mit eingelesener Datei"]
[]
[null,null,"Feldbezeichner gem. §21 KHEntgG (Version 2021)",null,"Vorhanden",null,">>> FAB.csv"]
[null,null,"Spalte2","Feld","Vorhanden","Spalte1","Spalte3","ImportDS"]
[null,null,{"$f":"IF(tbl_VergleichDS[[#This Row],[Feld]]=\"\",\"\",ROW(tbl_VergleichDS[[#This Row],[Feld]])-4)","v":1},"IK",{"$f":"IF(tbl_VergleichDS[[#This Row],[Feld]]=\"\",\"\",IF(ISERROR(MATCH(tbl_VergleichDS[[#This Row],[Feld]],tbl_VergleichDS[[#All],[ImportDS]],0)),-1,IF(tbl_VergleichDS[[#This Row],[Feld]]<>tbl_VergleichDS[[#This Row],[ImportDS]],0,1)))","v":1},null,{"$f":"IF(tbl_VergleichDS[[#This Row],[ImportDS]]=\"\",\"\",ROW(tbl_VergleichDS[[#This Row],[ImportDS]])-4)","v":1},"IK",null,null,null,"Datei","Feldbezeichner"]
[null,null,{"$f":"IF(tbl_VergleichDS[[#This Row],[Feld]]=\"\",\"\",ROW(tbl_VergleichDS[[#This Row],[Feld]])-4)","v":2},"Entlassender-Standort",{"$f":"IF(tbl_VergleichDS[[#This Row],[Feld]]=\"\",\"\",IF(ISERROR(MATCH(tbl_VergleichDS[[#This Row],[Feld]],tbl_VergleichDS[[#All],[ImportDS]],0)),-1,IF(tbl_VergleichDS[[#This Row],[Feld]]<>tbl_VergleichDS[[#This Row],[ImportDS]],0,1)))","v":1},null,{"$f":"IF(tbl_VergleichDS[[#This Row],[ImportDS]]=\"\",\"\",ROW(tbl_VergleichDS[[#This Row],[ImportDS]])-4)","v":2},"Entlassender-Standort",null,null,null,"FAB","IK;Entlassender-Standort;Entgeltbereich;KH-internes-Kennzeichen; Standortnummer-Behandlungsort;Fachabteilung;FAB-Aufnahmedatum;FAB-Entlassungsdatum;KennungIntensivbett"]
[null,null,{"$f":"IF(tbl_VergleichDS[[#This Row],[Feld]]=\"\",\"\",ROW(tbl_VergleichDS[[#This Row],[Feld]])-4)","v":3},"Entgeltbereich",{"$f":"IF(tbl_VergleichDS[[#This Row],[Feld]]=\"\",\"\",IF(ISERROR(MATCH(tbl_VergleichDS[[#This Row],[Feld]],tbl_VergleichDS[[#All],[ImportDS]],0)),-1,IF(tbl_VergleichDS[[#This Row],[Feld]]<>tbl_VergleichDS[[#This Row],[ImportDS]],0,1)))","v":1},null,{"$f":"IF(tbl_VergleichDS[[#This Row],[ImportDS]]=\"\",\"\",ROW(tbl_VergleichDS[[#This Row],[ImportDS]])-4)","v":3},"Entgeltbereich",null,null,null,"FALL","IK;Entlassender-Standort;Entgeltbereich;KH-internes-Kennzeichen;Versicherten-ID;Vertragskennzeichen-64b-Modellvorhaben;IK-der-Krankenkasse; Geburtsjahr;Geburtsmonat;Geschlecht;PLZ;Wohnort; Aufnahmedatum; Aufnahmeanlass;Aufnahmegrund; Fallzusammenführung;Fallzusammenführungsgrund; Aufnahmegewicht; Entlassungsdatum;Entlassungsgrund; Alter-in-Tagen-am-Aufnahmetag;Alter-in-Jahren-am-Aufnahmetag; Patientennummer;Interkurrente-Dialysen;Beatmungsstunden; Behandlungsbeginn-vorstationär; Behandlungstage-vorstationär; Behandlungsende-nachstationär;Behandlungstage-nachstationär; IK-Verlegungs-KH;Belegungstage-in-anderem-Entgeltbereich;Beurlaubungstage-PSY;Kennung-Besonderer-Fall-Modellvorhaben;Verweildauer-Intensiv"]
[null,null,{"$f":"IF(tbl_VergleichDS[[#This Row],[Feld]]=\"\",\"\",ROW(tbl_VergleichDS[[#This Row],[Feld]])-4)","v":4},"KH-internes-Kennzeichen",{"$f":"IF(tbl_VergleichDS[[#This Row],[Feld]]=\"\",\"\",IF(ISERROR(MATCH(tbl_VergleichDS[[#This Row],[Feld]],tbl_VergleichDS[[#All],[ImportDS]],0)),-1,IF(tbl_VergleichDS[[#This Row],[Feld]]<>tbl_VergleichDS[[#This Row],[ImportDS]],0,1)))","v":1},null,{"$f":"IF(tbl_VergleichDS[[#This Row],[ImportDS]]=\"\",\"\",ROW(tbl_VergleichDS[[#This Row],[ImportDS]])-4)","v":4},"KH-internes-Kennzeichen",null,null,null,"ICD","IK;Entlassender-Standort;Entgeltbereich;KH-internes-Kennzeichen; Diagnoseart;ICD-Version;ICD-Kode;Lokalisation;Diagnosensicherheit; Sekundär-Kode;Lokalisation;Diagnosensicherheit"]
[null,null,{"$f":"IF(tbl_VergleichDS[[#This Row],[Feld]]=\"\",\"\",ROW(tbl_VergleichDS[[#This Row],[Feld]])-4)","v":5},"Standortnummer-Behandlungsort",{"$f":"IF(tbl_VergleichDS[[#This Row],[Feld]]=\"\",\"\",IF(ISERROR(MATCH(tbl_VergleichDS[[#This Row],[Feld]],tbl_VergleichDS[[#All],[ImportDS]],0)),-1,IF(tbl_VergleichDS[[#This Row],[Feld]]<>tbl_VergleichDS[[#This Row],[ImportDS]],0,1)))","v":1},null,{"$f":"IF(tbl_VergleichDS[[#This Row],[ImportDS]]=\"\",\"\",ROW(tbl_VergleichDS[[#This Row],[ImportDS]])-4)","v":5},"Standortnummer-Behandlungsort",null,null,null,"OPS","IK;Entlassender-Standort;Entgeltbereich;KH-internes-Kennzeichen; OPS-Version;OPS-Kode;Lokalisation;OPS-Datum;Belegoperateur;Beleganästhesist;Beleghebamme"]
[null,null,{"$f":"IF(tbl_VergleichDS[[#This Row],[Feld]]=\"\",\"\",ROW(tbl_VergleichDS[[#This Row],[Feld]])-4)","v":6},"Fachabteilung",{"$f":"IF(tbl_VergleichDS[[#This Row],[Feld]]=\"\",\"\",IF(ISERROR(MATCH(tbl_VergleichDS[[#This Row],[Feld]],tbl_VergleichDS[[#All],[ImportDS]],0)),-1,IF(tbl_VergleichDS[[#This Row],[Feld]]<>tbl_VergleichDS[[#This Row],[ImportDS]],0,1)))","v":1},null,{"$f":"IF(tbl_VergleichDS[[#This Row],[ImportDS]]=\"\",\"\",ROW(tbl_VergleichDS[[#This Row],[ImportDS]])-4)","v":6},"Fachabteilung",null,null,null,"FAB_Namen","FAB;FAB-Bezeichnung"]
[null,null,{"$f":"IF(tbl_VergleichDS[[#This Row],[Feld]]=\"\",\"\",ROW(tbl_VergleichDS[[#This Row],[Feld]])-4)","v":7},"FAB-Aufnahmedatum",{"$f":"IF(tbl_VergleichDS[[#This Row],[Feld]]=\"\",\"\",IF(ISERROR(MATCH(tbl_VergleichDS[[#This Row],[Feld]],tbl_VergleichDS[[#All],[ImportDS]],0)),-1,IF(tbl_VergleichDS[[#This Row],[Feld]]<>tbl_VergleichDS[[#This Row],[ImportDS]],0,1)))","v":1},null,{"$f":"IF(tbl_VergleichDS[[#This Row],[ImportDS]]=\"\",\"\",ROW(tbl_VergleichDS[[#This Row],[ImportDS]])-4)","v":7},"FAB-Aufnahmedatum",null,null,null,"bak_icd","ICD-Filter;Beschreibung;Gruppe"]
[null,null,{"$f":"IF(tbl_VergleichDS[[#This Row],[Feld]]=\"\",\"\",ROW(tbl_VergleichDS[[#This Row],[Feld]])-4)","v":8},"FAB-Entlassungsdatum",{"$f":"IF(tbl_VergleichDS[[#This Row],[Feld]]=\"\",\"\",IF(ISERROR(MATCH(tbl_VergleichDS[[#This Row],[Feld]],tbl_VergleichDS[[#All],[ImportDS]],0)),-1,IF(tbl_VergleichDS[[#This Row],[Feld]]<>tbl_VergleichDS[[#This Row],[ImportDS]],0,1)))","v":1},null,{"$f":"IF(tbl_VergleichDS[[#This Row],[ImportDS]]=\"\",\"\",ROW(tbl_VergleichDS[[#This Row],[ImportDS]])-4)","v":8},"FAB-Entlassungsdatum",null,null,null,"bak_ki","KI-Filter;KI-Art"]
[null,null,{"$f":"IF(tbl_VergleichDS[[#This Row],[Feld]]=\"\",\"\",ROW(tbl_VergleichDS[[#This Row],[Feld]])-4)","v":9},"KennungIntensivbett",{"$f":"IF(tbl_VergleichDS[[#This Row],[Feld]]=\"\",\"\",IF(ISERROR(MATCH(tbl_VergleichDS[[#This Row],[Feld]],tbl_VergleichDS[[#All],[ImportDS]],0)),-1,IF(tbl_VergleichDS[[#This Row],[Feld]]<>tbl_VergleichDS[[#This Row],[ImportDS]],0,1)))","v":-1},null,{"$f":"IF(tbl_VergleichDS[[#This Row],[ImportDS]]=\"\",\"\",ROW(tbl_VergleichDS[[#This Row],[ImportDS]])-4)","v":9},"Kennung-Intensivbett"]